Workbook

Sheet Resoluciones (hidden)
A4: NÚMERO DE RESOLUCIÓN | B4: FECHA | C4: TIPO DE RESOLUCIÓN | D4: TIPO MUNICIPAL O LEGISLATIVO | E4: CAUSA DE CANCELACIÓN O SUSPENSIÓN | F4: CARGO, ORGANO, INSTITUCION , RESOLUCION | G4: PARTIDO, ORGANO INSTITUCIONAL, DELEGACION POLICIAL, JUNTA ELECTORAL | H4: RESUELTO | I4: MES | J4: MES1 | K4: TIPORES | L4: AÑO
A5: 0063-E7-2010 | B5: 2010-01-07 | C5: Denuncias | H5: Sin lugar | I5: =MONTH(B5) -> 1 | J5: Enero | K5: =MID(A5,6,1) -> E | L5: =YEAR(B5) -> 2010
A6: 0078-E1-2010 | B6: 2010-01-07 | C6: Amparo | F6: Artículo 41 del Código Electoral | H6: Sin lugar | I6: =MONTH(B6) -> 1 | J6: Enero | K6: =MID(A6,6,1) -> E | L6: =YEAR(B6) -> 2010
A7: 0157-E1-2010 | B7: 2010-01-11 | C7: Amparo | F7: Junta Cantonal de Escazú | H7: Rechazo de plano y archivo de exp. | I7: 1 | J7: Enero | K7: E | L7: 2010
A8: 0158-E1-2010 | B8: 2010-01-11 | C8: Amparo | F8: TSE | H8: Rechazo de plano y archivo de exp. | I8: 1 | J8: Enero | K8: E | L8: 2010
A9: 0159-E1-2010 | B9: 2010-01-11 | C9: Amparo | F9: Junta Cantonal de Escazú | H9: Rechazo de plano y archivo de exp. | I9: 1 | J9: Enero | K9: E | L9: 2010
A10: 0160-E7-2010 | B10: 2010-01-12 | C10: Denuncias | H10: Sin Lugar | I10: 1 | J10: Enero | K10: E | L10: 2010
A11: 0161-E3-2010 | B11: 2010-01-12 | C11: Apelación electoral | F11: Resolución de Inscripcción de club político | G11: Delegación Policial de Parrita | H11: Rechazo de plano y archivo de exp. | I11: 1 | J11: Enero | K11: E | L11: 2010
A12: 0162-E1-2010 | B12: 2010-01-12 | C12: Amparo | F12: Artículo 197 del Código Electoral | H12: Rechazo de plano y archivo de exp. | I12: 1 | J12: Enero | K12: E | L12: 2010
A13: 0163-E1-2010 | B13: 2010-01-12 | C13: Amparo | F13: Dirección General del Registro Electoral | H13: Rechazo de plano y archivo de exp. | I13: 1 | J13: Enero | K13: E | L13: 2010
A14: 0181-E1-2010 | B14: 2010-01-12 | C14: Amparo | F14: Acuerdo Junta Cantonal de Escazú | H14: Rechazo de plano y archivo de exp. | I14: 1 | J14: Enero | K14: E | L14: 2010
A15: 0182-E6-2010 | B15: 2010-01-12 | C15: Denuncia beligerancia Política | F15: Ministro de Gobernación, Seg y Policia a.i | H15: Sin Lugar | I15: 1 | J15: Enero | K15: E | L15: 2010
A16: 0183-E8-2010 | B16: 2010-01-12 | C16: Hermenéutica Electoral | H16: No se evacua consulta | I16: 1 | J16: Enero | K16: E | L16: 2010
A17: 0184-E3-2010 | B17: 2010-01-12 | C17: Apelación electoral | F17: TSE | H17: Rechazo de plano y archivo de exp. | I17: 1 | J17: Enero | K17: E | L17: 2010
A18: 0185-E8-2010 | B18: 2010-01-13 | C18: Hermenéutica Electoral | H18: Evacua consulta | I18: 1 | J18: Enero | K18: E | L18: 2010
A19: 0186-E1-2010 | B19: 2010-01-13 | C19: Amparo | F19: Artículos 33,37 y 41 del Código Electoral | H19: Rechazo de plano y archivo de exp. | I19: 1 | J19: Enero | K19: E | L19: 2010
A20: 0219-E6-2010 | B20: 2010-01-18 | C20: Denuncia beligerancia Política | F20: Funcionario de Municip. de Alajuela | H20: Sin Lugar | I20: 1 | J20: Enero | K20: E | L20: 2010
A21: 0222-E6-2010 | B21: 2010-01-19 | C21: Denuncia beligerancia Política | F21: Regidor Municip. de Cartago | H21: Sin Lugar | I21: 1 | J21: Enero | K21: E | L21: 2010
A22: 0223-E8-2010 | B22: 2010-01-19 | C22: Hermenéutica Electoral | H22: Evacua consulta | I22: 1 | J22: Enero | K22: E | L22: 2010
A23: 0259-E7-2010 | B23: 2010-01-20 | C23: Denuncias | H23: Rechazo de plano y archivo de exp. | I23: 1 | J23: Enero | K23: E | L23: 2010
A24: 0260-E1-2010 | B24: 2010-01-20 | C24: Amparo | F24: Concejo Municipal de Alajuela | H24: Rechazo de plano y archivo de exp. | I24: 1 | J24: Enero | K24: E | L24: 2010
A25: 0261-E3-2010 | B25: 2010-01-20 | C25: Apelación electoral | F25: Acuerdo Junta Cantonal de Montes de Oro | H25: Sin Lugar | I25: 1 | J25: Enero | K25: E | L25: 2010
A26: 0305-E8-2010 | B26: 2010-01-21 | C26: Hermenéutica Electoral | H26: Evacua consulta | I26: 1 | J26: Enero | K26: E | L26: 2010
A27: 0322-E7-2010 | B27: 2010-01-22 | C27: Denuncias | H27: Sin Lugar | I27: 1 | J27: Enero | K27: E | L27: 2010
A28: 0323-E1-2010 | B28: 2010-01-22 | C28: Amparo | F28: Artículo 197 del Código Electoral y resolución 5721-E8-2009 | H28: Rechazo de plano y archivo de exp. | I28: 1 | J28: Enero | K28: E | L28: 2010
A29: 0406-E8-2010 | B29: 2010-01-26 | C29: Hermenéutica Electoral | H29: Evacua consulta | I29: 1 | J29: Enero | K29: E | L29: 2010
A30: 0428-E8-2010 | B30: 2010-01-26 | C30: Hermenéutica Electoral | H30: Evacua consulta | I30: 1 | J30: Enero | K30: E | L30: 2010
A31: 0429-E8-2010 | B31: 2010-01-26 | C31: Hermenéutica Electoral | H31: Evacua consulta | I31: 1 | J31: Enero | K31: E | L31: 2010
A32: 0444-E6-2010 | B32: 2010-01-27 | C32: Denuncia beligerancia Política | F32: Alcaldesa suplente e intendente | H32: Sin Lugar | I32: 1 | J32: Enero | K32: E | L32: 2010
A33: 0517-E1-2010 | B33: 2010-01-29 | C33: Apelación electoral | F33: Resolución N° D55-1016-2009 | G33: Policia de Proximidad de Belén | H33: Rechazo de plano y archivo de exp. | I33: 1 | J33: Enero | K33: E | L33: 2010
A34: 0541-E7-2010 | B34: 2010-01-29 | C34: Denuncias | H34: Rechazo de plano y archivo de exp. | I34: 1 | J34: Enero | K34: E | L34: 2010
A35: 0542-E6-2010 | B35: 2010-01-29 | C35: Denuncia beligerancia Política | F35: Funcionaria de Policia Penitenciaria | H35: Sin Lugar | I35: 1 | J35: Enero | K35: E | L35: 2010
A36: 0543-E1-2010 | B36: 2010-01-29 | C36: Amparo | F36: Tribunal de Elecciones Internas | G36: Partido Liberación Nacional | H36: Con Lugar | I36: 1 | J36: Enero | K36: E | L36: 2010
A37: 0591-E8-2010 | B37: 2010-02-01 | C37: Hermenéutica Electoral | H37: Evacua consulta | I37: 2 | J37: Febrero | K37: E | L37: 2010
A38: 0612-E7-2010 | B38: 2010-02-01 | C38: Denuncias | H38: Sin Lugar | I38: 2 | J38: Febrero | K38: E | L38: 2010
A39: 0663-E5-2010 | B39: 2010-02-03 | C39: Cancel. Cred. Elec. Popular | F39: Recusación contra Magistrado | H39: Sin Lugar | I39: 2 | J39: Febrero | K39: E | L39: 2010
A40: 0716-E3-2010 | B40: 2010-02-04 | C40: Apelación electoral | F40: Resolución N° D55-1016-2009 | G40: Policia de Proximidad de Escazú | H40: Sin Lugar | I40: 2 | J40: Febrero | K40: E | L40: 2010
A41: 0735-E8-2010 | B41: 2010-02-05 | C41: Hermenéutica Electoral | H41: Evacua consulta | I41: 2 | J41: Febrero | K41: E | L41: 2010
A42: 0758-E1-2010 | B42: 2010-02-05 | C42: Amparo | F42: Inscripción de candidaturas de regidores | G42: Movimiento Libertario | H42: Rechazo de plano y archivo de exp. | I42: 2 | J42: Febrero | K42: E | L42: 2010
A43: 0759-E8-2010 | B43: 2010-02-05 | C43: Hermenéutica Electoral | H43: Evacua consulta parcialmente | I43: 2 | J43: Febrero | K43: E | L43: 2010
A44: 0760-E3-2010 | B44: 2010-02-05 | C44: Apelación electoral | F44: Decisión de Juntas Cantonales | H44: Rechazo de plano y archivo de exp. | I44: 2 | J44: Febrero | K44: E | L44: 2010
A45: 0761-E3-2010 | B45: 2010-02-06 | C45: Apelación electoral | F45: Resolución 002-2010 del Programa de Acreditación de Fiscales | H45: Parcialmente con Lugar | I45: 2 | J45: Febrero | K45: E | L45: 2010
A46: 0762-E8-2010 | B46: 2010-02-06 | C46: Hermenéutica Electoral | H46: Evacua consulta | I46: 2 | J46: Febrero | K46: E | L46: 2010
A47: 0763-E1-2010 | B47: 2010-02-07 | C47: Amparo | F47: Laura Chinchilla, Otto Guevara y Luis Fishman | H47: Rechazo de plano y archivo de exp. | I47: 2 | J47: Febrero | K47: E | L47: 2010
A48: 0764-E1-2010 | B48: 2010-02-07 | C48: Amparo | F48: Resolución de Fuerza Pública y MINAET | H48: Rechazo de plano y archivo de exp. | I48: 2 | J48: Febrero | K48: E | L48: 2010
A49: 0888-E8-2010 | B49: 2010-02-09 | C49: Hermenéutica Electoral | H49: Evacua consulta | I49: 2 | J49: Febrero | K49: E | L49: 2010
A50: 0890-E6-2010 | B50: 2010-02-09 | C50: Denuncia beligerancia Política | F50: Gobierno de la Repúblia | H50: Sin Lugar | I50: 2 | J50: Febrero | K50: E | L50: 2010
A51: 0893-E6-2010 | B51: 2010-02-09 | C51: Denuncia beligerancia Política | F51: Alcalde de Carrillo | H51: Sin Lugar | I51: 2 | J51: Febrero | K51: E | L51: 2010
A52: 0894-E7-2010 | B52: 2010-02-10 | C52: Denuncias | H52: Sin Lugar | I52: 2 | J52: Febrero | K52: E | L52: 2010
A53: 1105-E7-2010 | B53: 2010-02-18 | C53: Incidente en proceso de Denuncia | F53: Recusación conrtra Magistrado Instructor | H53: Sin Lugar | I53: 2 | J53: Febrero | K53: E | L53: 2010
A54: 1226-E7-2010 | B54: 2010-02-22 | C54: Denuncias | H54: Sin Lugar | I54: 2 | J54: Febrero | K54: E | L54: 2010
A55: 1227-E4-2010 | B55: 2010-02-22 | C55: Demanda de Nulidad | F55: Junta Receptora N° 1739 | H55: Sin Lugar | I55: 2 | J55: Febrero | K55: E | L55: 2010
A56: 1228-E8-2010 | B56: 2010-02-23 | C56: Hermenéutica Electoral | H56: No se evacua consulta | I56: 2 | J56: Febrero | K56: E | L56: 2010
A57: 1234-E8-2010 | B57: 2010-02-23 | C57: Hermenéutica Electoral | H57: Evacua consulta | I57: 2 | J57: Febrero | K57: E | L57: 2010
A58: 1235-E6-2010 | B58: 2010-02-23 | C58: Denuncia beligerancia Política | F58: Alcalde y Funcionario Municipal | H58: Sin Lugar | I58: 2 | J58: Febrero | K58: E | L58: 2010
A59: 1253-E6-2010 | B59: 2010-02-23 | C59: Denuncia beligerancia Política | F59: Miembro de Junta Directiva de Racsa | H59: Rechazo de plano y archivo de exp. | I59: 2 | J59: Febrero | K59: E | L59: 2010
A60: 1254-E4-2010 | B60: 2010-02-24 | C60: Demanda de Nulidad | F60: Decisión de no contar firmas | H60: Sin Lugar | I60: 2 | J60: Febrero | K60: E | L60: 2010
A61: 1304-E3-2010 | B61: 2010-02-25 | C61: Apelación electoral | F61: Contra DGRE por rechazo de nómina de miembros de Juntas | H61: Sin Lugar | I61: 2 | J61: Febrero | K61: E | L61: 2010
A62: 1306-E6-2010 | B62: 2010-02-25 | C62: Denuncia beligerancia Política | F62: Alcalde de Goicoechea | H62: Sin Lugar | I62: 2 | J62: Febrero | K62: E | L62: 2010
A63: 1307-E3-2010 | B63: 2010-02-26 | C63: Apelación electoral | F63: Resolución 002-DGRE-2010 | H63: Sin Lugar | I63: 2 | J63: Febrero | K63: E | L63: 2010
A64: 1308-E3-2010 | B64: 2010-02-26 | C64: Apelación electoral | F64: Junta Receptora N° 1985 por anular voto | H64: Sin Lugar | I64: 2 | J64: Febrero | K64: E | L64: 2010
A65: 1449-E7-2010 | B65: 2010-03-04 | C65: Denuncias | H65: Sin Lugar | I65: 3 | J65: Marzo | K65: E | L65: 2010
A66: 1550-E8-2010 | B66: 2010-03-09 | C66: Hermenéutica Electoral | H66: Evacua consulta | I66: 3 | J66: Marzo | K66: E | L66: 2010
A67: 1580-E3-2010 | B67: 2010-03-09 | C67: Apelación electoral | F67: Certificación de votos Junta 4439 | H67: Sin Lugar | I67: 3 | J67: Marzo | K67: E | L67: 2010
A68: 1581-E1-2010 | B68: 2010-03-09 | C68: Amparo | F68: Jefe de Servicios Generales del TSE | H68: Sin Lugar | I68: 3 | J68: Marzo | K68: E | L68: 2010
A69: 1582-E9-2010 | B69: 2010-03-09 | C69: Democracia Semidirecta | F69: Archivar petición | H69: Con Lugar | I69: 3 | J69: Marzo | K69: E | L69: 2010
A70: 1583-E6-2010 | B70: 2010-03-09 | C70: Denuncia beligerancia Política | F70: Municip de Mts de Oca | H70: Sin Lugar | I70: =MONTH(B70) -> 3 | J70: Marzo | K70: =MID(A70,6,1) -> E | L70: =YEAR(B70) -> 2010
A71: 1787-E1-2010 | B71: 2010-03-16 | C71: Amparo | F71: Interpretación de art 205 del Cod Elec por parte del TSE | H71: Rechazo de plano | I71: 3 | J71: Marzo | K71: E | L71: 2010
A72: 1796-E8-2010 | B72: 2010-03-17 | C72: Hermenéutica Electoral | H72: Evacua consulta | I72: 3 | J72: Marzo | K72: E | L72: 2010
A73: 1802-E7-2010 | B73: 2010-03-17 | C73: Denuncias | H73: Sin Lugar | I73: 3 | J73: Marzo | K73: E | L73: 2010
A74: 1809-E6-2010 | B74: 2010-03-17 | C74: Denuncia beligerancia Política | F74: Presidente de la República | H74: Sin Lugar | I74: 3 | J74: Marzo | K74: E | L74: 2010
A75: 1821-E7-2010 | B75: 2010-03-17 | C75: Denuncias | H75: Sin Lugar | I75: 3 | J75: Marzo | K75: E | L75: 2010
A76: 1853-E4-2010 | B76: 2010-03-18 | C76: Demanda de Nulidad | F76: Certificación de votos de Junta 5535 | H76: Sin Lugar | I76: 3 | J76: Marzo | K76: E | L76: 2010
A77: 1854-E3-2010 | B77: 2010-03-18 | C77: Apelación electoral | F77: Decisión de Junta 243 | H77: Sin Lugar | I77: 3 | J77: Marzo | K77: E | L77: 2010
A78: 1855-E6-2010 | B78: 2010-03-18 | C78: Denuncia beligerancia Política | F78: Presidente Ejecutivo y Jefe de Servicios Generales del AyA | H78: Sin Lugar | I78: 3 | J78: Marzo | K78: E | L78: 2010
A79: 1876-E1-2010 | B79: 2010-03-18 | C79: Amparo | F79: Decisión del TSE | H79: Rechazo de plano | I79: 3 | J79: Marzo | K79: E | L79: 2010
A80: 1887-E1-2010 | B80: 2010-03-18 | C80: Amparo | F80: Tribunal de Elecciones Internas | G80: Movimiento Libertario | H80: Sin Lugar | I80: 3 | J80: Marzo | K80: E | L80: 2010
A81: 1933-E6-2010 | B81: 2010-03-22 | C81: Denuncia beligerancia Política | F81: Presidente de la República | H81: Sin Lugar | I81: 3 | J81: Marzo | K81: E | L81: 2010
A82: 1957-E3-2010 | B82: 2010-03-22 | C82: Apelación electoral | F82: Oficio DRPP-041-2010 | H82: Sin Lugar | I82: 3 | J82: Marzo | K82: E | L82: 2010
A83: 1958-E8-2010 | B83: 2010-03-22 | C83: Hermenéutica Electoral | H83: Evacua consulta | I83: 3 | J83: Marzo | K83: E | L83: 2010
A84: 2095-E1-2010 | B84: 2010-03-26 | C84: Amparo | F84: TSE | H84: Rechazo de plano | I84: 3 | J84: Marzo | K84: E | L84: 2010
A85: 2124-E10-2010 | B85: 2010-03-26 | C85: Liquidación gastos part políticos | F85: TSE | G85: Partidos con derecho a recibir contribución estatal. | H85: Se liquidan los montos respectivos | I85: 3 | J85: Marzo | K85: E | L85: 2010
A86: 2225-E1-2010 | B86: 2010-04-06 | C86: Amparo | F86: TSE | H86: Rechazo de plano y archivo de exp. | I86: 4 | J86: Abril | K86: E | L86: 2010
A87: 2399-E6-2010 | B87: 2010-04-09 | C87: Denuncia beligerancia Política | F87: Alcaldesa de Puntarenas | H87: Sin Lugar | I87: 4 | J87: Abril | K87: E | L87: 2010
A88: 2447-E7-2010 | B88: 2010-04-09 | C88: Denuncias | H88: Sin Lugar | I88: 4 | J88: Abril | K88: E | L88: 2010
A89: 2448-E8-2010 | B89: 2010-04-09 | C89: Hermenéutica Electoral | H89: Evacua consulta | I89: 4 | J89: Abril | K89: E | L89: 2010
A90: 2547-E7-2010 | B90: 2010-04-16 | C90: Denuncias | H90: Sin Lugar | I90: 4 | J90: Abril | K90: E | L90: 2010
A91: 2551-E7-2010 | B91: 2010-04-16 | C91: Denuncias | H91: Sin Lugar | I91: 4 | J91: Abril | K91: E | L91: 2010
A92: 2761-E8-2010 | B92: 2010-04-20 | C92: Hermenéutica Electoral | H92: Evacua consulta | I92: 4 | J92: Abril | K92: E | L92: 2010
A93: 2785-E1-2010 | B93: 2010-04-21 | C93: Amparo | F93: Resolución del TSE | H93: Rechazo de plano y archivo de exp. | I93: 4 | J93: Abril | K93: E | L93: 2010
A94: 2812-E8-2010 | B94: 2010-04-21 | C94: Hermenéutica Electoral | H94: Evacua consulta | I94: 4 | J94: Abril | K94: E | L94: 2010
A95: 2899-E3-2010 | B95: 2010-04-23 | C95: Apelación electoral | F95: Resolución DGRE-040-RPP-2010 | H95: Sin Lugar | I95: 4 | J95: Abril | K95: E | L95: 2010
A96: 3169-E1-2010 | B96: 2010-04-27 | C96: Amparo | F96: Radio UCR | H96: Rechazo de plano y archivo de exp. | I96: 4 | J96: Abril | K96: E | L96: 2010
A97: 3170-E8-2010 | B97: 2010-04-27 | C97: Hermenéutica Electoral | H97: Evacua consulta | I97: 4 | J97: Abril | K97: E | L97: 2010
A98: 3265-E7-2010 | B98: 2010-04-29 | C98: Denuncias | H98: Sin Lugar | I98: 4 | J98: Abril | K98: E | L98: 2010
A99: 3267-E3-2010 | B99: 2010-04-29 | C99: Apelación electoral | F99: Resolución Delegación Policial de Aserrí | H99: Rechazo de plano y archivo de exp. | I99: 4 | J99: Abril | K99: E | L99: 2010
A100: 3271-E7-2010 | B100: 2010-04-29 | C100: Denuncias | H100: Con Lugar | I100: 4 | J100: Abril | K100: E | L100: 2010
A101: 3275-E8-2010 | B101: 2010-04-30 | C101: Hermenéutica Electoral | H101: Evacua consulta | I101: 4 | J101: Abril | K101: E | L101: 2010
A102: 3277-E1-2010 | B102: 2010-04-30 | C102: Amparo | F102: Concejo Municipal de Turrialba | H102: Con Lugar | I102: 4 | J102: Abril | K102: E | L102: 2010
A103: 3281-E1-2010 | B103: 2010-05-03 | C103: Amparo | F103: Opispo de Cartago | H103: Con Lugar | I103: 5 | J103: Mayo | K103: E | L103: 2010
A104: 3413-E7-2010 | B104: 2010-05-07 | C104: Denuncias | H104: Archivo de exp. | I104: 5 | J104: Mayo | K104: E | L104: 2010
A105: 3414-E7-2010 | B105: 2010-05-07 | C105: Denuncias | H105: Sin Lugar | I105: 5 | J105: Mayo | K105: E | L105: 2010
A106: 3671-E8-2010 | B106: 2010-05-13 | C106: Hermenéutica Electoral | H106: Evacua consulta | I106: 5 | J106: Mayo | K106: E | L106: 2010
A107: 3676-E1-2010 | B107: 2010-05-14 | C107: Amparo | F107: Presidente Provisional del Concejo Munic. De Alajuela. | H107: Rechazo de plano y archivo de exp. | I107: 5 | J107: Mayo | K107: E | L107: 2010
A108: 3686-E7-2010 | B108: 2010-05-17 | C108: Denuncias | H108: Rechazo de plano y archivo de exp. | I108: 5 | J108: Mayo | K108: E | L108: 2010
A109: 3831-E7-2010 | B109: 2010-05-21 | C109: Denuncias | H109: Sin Lugar | I109: 5 | J109: Mayo | K109: E | L109: 2010
A110: 3837-E1-2010 | B110: 2010-05-21 | C110: Amparo | F110: Concejo Muncipal de Turrialba | H110: Rechazo de plano y archivo de exp. | I110: 5 | J110: Mayo | K110: E | L110: 2010
A111: 3953-E8-2010 | B111: 2010-05-31 | C111: Hermenéutica Electoral | H111: Evacua consulta | I111: 5 | J111: Mayo | K111: E | L111: 2010
A112: 3978-E1-2010 | B112: 2010-06-02 | C112: Amparo | F112: Artículo 205 del Código Electoral | H112: Rechazo de plano y archivo de exp. | I112: 6 | J112: Junio | K112: E | L112: 2010
A113: 3980-E8-2010 | B113: 2010-06-02 | C113: Hermenéutica Electoral | H113: Evacua consulta | I113: 6 | J113: Junio | K113: E | L113: 2010
A114: 3982-E1-2010 | B114: 2010-06-02 | C114: Amparo | F114: Partido | G114: Partido Liberación Nacional | H114: Sin Lugar | I114: 6 | J114: Junio | K114: E | L114: 2010
A115: 4129-E1-2010 | B115: 2010-06-04 | C115: Amparo | F115: Partido | G115: Movimiento Libertario | H115: Rechazo de plano y archivo de exp. | I115: 6 | J115: Junio | K115: E | L115: 2010
A116: 4165-E7-2010 | B116: 2010-06-04 | C116: Denuncias | H116: Sin Lugar | I116: 6 | J116: Junio | K116: E | L116: 2010
A117: 4291-E6-2010 | B117: 2010-06-09 | C117: Denuncia beligerancia Política | F117: Alcalde Propietario de Osa | H117: Sin Lugar | I117: 6 | J117: Junio | K117: E | L117: 2010
A118: 4302-E8-2010 | B118: 2010-06-11 | C118: Hermenéutica Electoral | H118: No se evacua consulta | I118: 6 | J118: Junio | K118: E | L118: 2010
A119: 4303-E8-2010 | B119: 2010-06-11 | C119: Hermenéutica Electoral | H119: Evacua consulta | I119: 6 | J119: Junio | K119: E | L119: 2010
A120: 4388-E7-2010 | B120: 2010-06-15 | C120: Denuncia beligerancia Política | F120: Regidor de Turrialba | H120: Sin Lugar | I120: 6 | J120: Junio | K120: E | L120: 2010
A121: 4389-E1-2010 | B121: 2010-06-15 | C121: Amparo | F121: Comité Ejecutivo | G121: Movimiento Libertario | H121: Rechazo de plano y archivo de exp. | I121: 6 | J121: Junio | K121: E | L121: 2010
A122: 4391-E8-2010 | B122: 2010-06-15 | C122: Hermenéutica Electoral | H122: Evacua consulta | I122: 6 | J122: Junio | K122: E | L122: 2010
A123: 4479-E1-2010 | B123: 2010-06-17 | C123: Amparo | F123: Partido | G123: Unidad Social Cristiana | H123: Sin Lugar | I123: 6 | J123: Junio | K123: E | L123: 2010
A124: 4480-E7-2010 | B124: 2010-06-17 | C124: Denuncias | H124: Sin Lugar | I124: 6 | J124: Junio | K124: E | L124: 2010
A125: 4482-E8-2010 | B125: 2010-06-17 | C125: Hermenéutica Electoral | H125: Evacua consulta | I125: 6 | J125: Junio | K125: E | L125: 2010
A126: 4555-E8-2010 | B126: 2010-06-24 | C126: Hermenéutica Electoral | H126: Evacua consulta | I126: 6 | J126: Junio | K126: E | L126: 2010
A127: 4587-E7-2010 | B127: 2010-06-25 | C127: Denuncias | H127: Sin Lugar | I127: 6 | J127: Junio | K127: E | L127: 2010
A128: 4648-E8-2010 | B128: 2010-06-30 | C128: Hermenéutica Electoral | H128: Evacua consulta | I128: 6 | J128: Junio | K128: E | L128: 2010
A129: 4652-E8-2010 | B129: 2010-06-30 | C129: Hermenéutica Electoral | H129: Evacua consulta | I129: 6 | J129: Junio | K129: E | L129: 2010
A130: 4660-E7-2010 | B130: 2010-06-30 | C130: Denuncias | H130: Sin Lugar | I130: 6 | J130: Junio | K130: E | L130: 2010
A131: 0324-M-2010 | B131: 2010-01-22 | C131: Cancel. Cred. Municipal | D131: Canceladas | E131: Renuncia | F131: Concejal | G131: Yunta Progresista Escazuceña | I131: =MONTH(B131) -> 1 | J131: Enero | K131: M | L131: 2010
A132: 0474-M-2010 | B132: 2010-01-27 | C132: Cancel. Cred. Municipal | D132: Canceladas | E132: Renuncia | F132: Regidor(a) | G132: Unidad Social Cristiana | I132: =MONTH(B132) -> 1 | J132: Enero | K132: M | L132: 2010
A133: 0544-M-2010 | B133: 2010-01-29 | C133: Cancel. Cred. Municipal | D133: Sin lugar | E133: Ausencia | F133: Regidor(a) | G133: Movimiento Libertario | I133: 1 | J133: Enero | K133: M | L133: 2010
A134: 0590-M-2010 | B134: 2010-02-01 | C134: Cancel. Cred. Municipal | D134: Sin lugar | E134: Presunta cesión de terrenos ilícita | F134: Alcalde(sa) y Regidores | I134: 2 | J134: Febrero | K134: =MID(A134,6,1) -> M | L134: =YEAR(B134) -> 2010
A135: 0593-M-2010 | B135: 2010-02-01 | C135: Cancel. Cred. Municipal | D135: Rechazo de plano | E135: Presunta comisión de Delitos Penales | F135: Alcalde y Alcaldesa Sup. | I135: 2 | J135: Febrero | K135: M | L135: 2010
A136: 0889-M-2010 | B136: 2010-02-09 | C136: Cancel. Cred. Municipal | D136: Canceladas | E136: No declaración anual de bienes | F136: Concejal | G136: Liberación Nacional | I136: 2 | J136: Febrero | K136: M | L136: 2010
A137: 0891-M-2010 | B137: 2010-02-09 | C137: Cancel. Cred. Municipal | D137: Sin lugar | E137: Ausencia | F137: Regidor(a) | I137: 2 | J137: Febrero | K137: M | L137: 2010
A138: 0892-M-2010 | B138: 2010-02-09 | C138: Cancel. Cred. Municipal | D138: Canceladas | E138: Ausencia | F138: Regidor(a) | G138: Unidad Social Cristiana | I138: 2 | J138: Febrero | K138: M | L138: 2010
A139: 1305-M-2010 | B139: 2010-02-25 | C139: Cancel. Cred. Municipal | D139: Suspensión sin goce de salario | E139: Varias disposiciones en el ejercicio de su cargo | F139: Alcalde(sa) | I139: 2 | J139: Febrero | K139: M | L139: 2010
A140: 1369-M-2010 | B140: 2010-03-02 | C140: Cancel. Cred. Municipal | D140: Sin lugar | E140: Enriq Ilícito y Corrupción | F140: Regidor(a) | I140: 3 | J140: Marzo | K140: M | L140: 2010
A141: 1943-M-2010 | B141: 2010-03-22 | C141: Cancel. Cred. Municipal | D141: Canceladas | E141: Renuncia | F141: Regidor(a) | G141: Unidad Social Cristiana | I141: 3 | J141: Marzo | K141: M | L141: 2010
A142: 2042-M-2010 | B142: 2010-03-24 | C142: Cancel. Cred. Municipal | D142: Canceladas | E142: Renuncia | F142: Alcalde(sa) Suplente | G142: Liberación Nacional | I142: 3 | J142: Marzo | K142: M | L142: 2010
A143: 2043-M-2010 | B143: 2010-03-24 | C143: Cancel. Cred. Municipal | D143: Canceladas | E143: Ausencia | F143: Regidor(a) | G143: Liberación Nacional | I143: 3 | J143: Marzo | K143: M | L143: 2010
A144: 2147-M-2010 | B144: 2010-04-05 | C144: Cancel. Cred. Municipal | D144: Suspensión sin goce de salario | E144: Hacienda Pública | F144: Alcalde(sa) | I144: 4 | J144: Abril | K144: M | L144: 2010
A145: 2365-M-2010 | B145: 2010-04-09 | C145: Cancel. Cred. Municipal | D145: Canceladas | E145: Renuncia | F145: Regidor(a) | G145: Acción Ciudadana | I145: 4 | J145: Abril | K145: M | L145: 2010
A146: 2557-M-2010 | B146: 2010-04-16 | C146: Cancel. Cred. Municipal | D146: Canceladas | E146: No declaración anual de bienes | F146: Regidor(a) | G146: Del Sol | I146: 4 | J146: Abril | K146: M | L146: 2010
A147: 2898-M-2010 | B147: 2010-04-23 | C147: Cancel. Cred. Municipal | D147: Canceladas | E147: Renuncia | F147: Alcalde(sa) | G147: Liberación Nacional | I147: 4 | J147: Abril | K147: M | L147: 2010
A148: 3171-M-2010 | B148: 2010-04-27 | C148: Apelación en proceso de cancelación de credenciales | D148: Sin lugar | E148: Contratación irregular de servidores | F148: Alcalde(sa) | I148: 4 | J148: Abril | K148: M | L148: 2010
A149: 3185-M-2010 | B149: 2010-04-27 | C149: Cancel. Cred. Municipal | D149: Sin lugar | E149: Presunto traspaso ilícito de terreno | F149: Regidor(a) | I149: 4 | J149: Abril | K149: M | L149: 2010
A150: 3268-M-2010 | B150: 2010-04-29 | C150: Cancel. Cred. Municipal | D150: Canceladas | E150: No declaración anual de bienes | F150: Regidor(a) | G150: Acción Ciudadana | I150: 4 | J150: Abril | K150: M | L150: 2010
A151: 3278-M-2010 | B151: 2010-04-30 | C151: Cancel. Cred. Municipal | D151: Canceladas | E151: Renuncia | F151: Síndico(a) | G151: Acción Ciudadana | I151: 4 | J151: Abril | K151: M | L151: 2010
A152: 3279-M-2010 | B152: 2010-04-30 | C152: Cancel. Cred. Municipal | D152: Canceladas | E152: Renuncia | F152: Síndico(a) | G152: Acción Ciudadana | I152: 4 | J152: Abril | K152: M | L152: 2010
A153: 3321-M-2010 | B153: 2010-05-03 | C153: Cancel. Cred. Municipal | D153: Canceladas | E153: Renuncia | F153: Síndico(a) Suplente | G153: Liberación Nacional | I153: 5 | J153: Mayo | K153: M | L153: 2010
A154: 3323-M-2010 | B154: 2010-05-03 | C154: Cancel. Cred. Municipal | D154: Canceladas | E154: Renuncia | F154: Síndico(a) Propietario(a) | G154: Liberación Nacional | I154: 5 | J154: Mayo | K154: M | L154: 2010
A155: 3324-M-2010 | B155: 2010-05-03 | C155: Cancel. Cred. Municipal | D155: Canceladas | E155: Renuncia | F155: Síndico(a) Suplente | G155: Liberación Nacional | I155: 5 | J155: Mayo | K155: M | L155: 2010
A156: 3408-M-2010 | B156: 2010-05-07 | C156: Cancel. Cred. Municipal | D156: Canceladas | E156: Renuncia | F156: Síndico(a) Suplente | G156: Liberación Nacional | I156: 5 | J156: Mayo | K156: M | L156: 2010
A157: 3409-M-2010 | B157: 2010-05-07 | C157: Cancel. Cred. Municipal | D157: Canceladas | E157: Renuncia | F157: Síndico(a) Propietario(a) | G157: Unión para el Cambio | I157: 5 | J157: Mayo | K157: M | L157: 2010
A158: 3410-M-2010 | B158: 2010-05-07 | C158: Cancel. Cred. Municipal | D158: Archivadas | E158: Renuncia | F158: Regidor(a) Suplente | G158: Acción Ciudadana | I158: 5 | J158: Mayo | K158: M | L158: 2010
A159: 3411-M-2010 | B159: 2010-05-07 | C159: Cancel. Cred. Municipal | D159: Sin lugar | E159: Ausencia | F159: Síndico(a) Propietario(a) | I159: 5 | J159: Mayo | K159: M | L159: 2010
A160: 3412-M-2010 | B160: 2010-05-07 | C160: Cancel. Cred. Municipal | D160: Rechazo de plano | E160: Rendición de cuentas | F160: Alcalde(sa) | I160: 5 | J160: Mayo | K160: M | L160: 2010
A161: 3580-M-2010 | B161: 2010-05-11 | C161: Cancel. Cred. Municipal | D161: Canceladas | E161: Renuncia | F161: Concejal Propietario(a) | G161: Liberación Nacional | I161: 5 | J161: Mayo | K161: M | L161: 2010
A162: 3604-M-2010 | B162: 2010-05-11 | C162: Cancel. Cred. Municipal | D162: Archivadas | E162: Renuncia | F162: Regidor(a) Suplente | I162: 5 | J162: Mayo | K162: M | L162: 2010
A163: 3605-M-2010 | B163: 2010-05-11 | C163: Cancel. Cred. Municipal | D163: Archivadas | E163: Ausencia | F163: Regidor(a) Propietario(a) | I163: 5 | J163: Mayo | K163: M | L163: 2010
A164: 3606-M-2010 | B164: 2010-05-11 | C164: Cancel. Cred. Municipal | D164: Archivadas | E164: Ausencia | F164: Regidor(a) Propietario(a) | I164: 5 | J164: Mayo | K164: M | L164: 2010
A165: 3607-M-2010 | B165: 2010-05-11 | C165: Cancel. Cred. Municipal | D165: Canceladas | E165: Renuncia | F165: Síndico(a) Propietario(a) | G165: Liberación Nacional | I165: 5 | J165: Mayo | K165: M | L165: 2010
A166: 3609-M-2010 | B166: 2010-05-11 | C166: Cancel. Cred. Municipal | D166: Canceladas | E166: Renuncia | F166: Síndico(a) Propietario(a) | G166: Liberación Nacional | I166: 5 | J166: Mayo | K166: M | L166: 2010
A167: 3610-M-2010 | B167: 2010-05-11 | C167: Cancel. Cred. Municipal | D167: Archivadas | E167: Zona Marítimo Terrestre | F167: Regidores Propietarios y Suplentes | I167: 5 | J167: Mayo | K167: M | L167: 2010
A168: 3672-M-2010 | B168: 2010-05-13 | C168: Cancel. Cred. Municipal | D168: Archivadas | E168: Cambio de residencia habitual | F168: Regidor(a) Propietario(a) | I168: 5 | J168: Mayo | K168: M | L168: 2010
A169: 3673-M-2010 | B169: 2010-05-14 | C169: Cancel. Cred. Municipal | D169: Canceladas | E169: Renuncia | F169: Síndico(a) Propietario(a) | G169: Liberación Nacional | I169: 5 | J169: Mayo | K169: M | L169: 2010
A170: 3674-M-2010 | B170: 2010-05-14 | C170: Cancel. Cred. Municipal | D170: Canceladas | E170: Renuncia | F170: Concejal Propietario(a) | G170: Acción Ciudadana | I170: 5 | J170: Mayo | K170: M | L170: 2010
A171: 3675-M-2010 | B171: 2010-05-14 | C171: Cancel. Cred. Municipal | D171: Canceladas | E171: Renuncia | F171: Síndico(a) Propietario(a) | G171: Liberación Nacional | I171: 5 | J171: Mayo | K171: M | L171: 2010
A172: 3677-M-2010 | B172: 2010-05-14 | C172: Cancel. Cred. Municipal | D172: Canceladas | E172: Renuncia | F172: Concejal Propietario(a) | G172: Liberación Nacional | I172: 5 | J172: Mayo | K172: M | L172: 2010
A173: 3678-M-2010 | B173: 2010-05-14 | C173: Cancel. Cred. Municipal | D173: Canceladas | E173: Renuncia | F173: Síndico(a) Suplente | G173: Liberación Nacional | I173: 5 | J173: Mayo | K173: M | L173: 2010
A174: 3681-M-2010 | B174: 2010-05-17 | C174: Cancel. Cred. Municipal | D174: Archivadas | E174: Fallecimiento | F174: Regidor(a) Propietario(a) | I174: 5 | J174: Mayo | K174: M | L174: 2010
A175: 3682-M-2010 | B175: 2010-05-17 | C175: Cancel. Cred. Municipal | D175: Archivadas | E175: Renuncia | F175: Regidor(a) Suplente | I175: 5 | J175: Mayo | K175: M | L175: 2010
A176: 3683-M-2010 | B176: 2010-05-17 | C176: Cancel. Cred. Municipal | D176: Archivadas | E176: Renuncia | F176: Regidor(a) Propietario(a) | I176: 5 | J176: Mayo | K176: M | L176: 2010
A177: 3684-M-2010 | B177: 2010-05-17 | C177: Cancel. Cred. Municipal | D177: Canceladas | E177: Renuncia | F177: Síndico(a) Propietario(a) | G177: Liberación Nacional | I177: 5 | J177: Mayo | K177: M | L177: 2010
A178: 3688-M-2010 | B178: 2010-05-17 | C178: Cancel. Cred. Municipal | D178: Canceladas | E178: Renuncia | F178: Síndico(a) Suplente | G178: Unidad Social Cristiana | I178: 5 | J178: Mayo | K178: M | L178: 2010
A179: 3714-M-2010 | B179: 2010-05-18 | C179: Cancel. Cred. Municipal | D179: Archivadas | E179: Renuncia | F179: Regidor(a) Propietario(a) | I179: 5 | J179: Mayo | K179: M | L179: 2010
A180: 3755-M-2010 | B180: 2010-05-20 | C180: Cancel. Cred. Municipal | D180: Archivadas | E180: Zona Marítimo Terrestre | F180: Regidor(a) Propietario(a) | I180: 5 | J180: Mayo | K180: M | L180: 2010
A181: 3756-M-2010 | B181: 2010-05-20 | C181: Cancel. Cred. Municipal | D181: Archivadas | E181: Incumplimiento de deberes | F181: Regidor(a) Propietario(a) | I181: 5 | J181: Mayo | K181: M | L181: 2010
A182: 3833-M-2010 | B182: 2010-05-21 | C182: Cancel. Cred. Municipal | D182: Archivadas | E182: Deber de probidad | F182: Regidor(a) Propietario(a) | I182: 5 | J182: Mayo | K182: M | L182: 2010
A183: 3884-M-2010 | B183: 2010-05-21 | C183: Cancel. Cred. Municipal | D183: Archivadas | E183: Enriq Ilícito y Corrupción | F183: Regidor(a) Propietario(a) | I183: 5 | J183: Mayo | K183: M | L183: 2010
A184: 3835-M-2010 | B184: 2010-05-21 | C184: Cancel. Cred. Municipal | D184: Archivadas | E184: Hacienda Pública | F184: Regidor(a) Propietario(a) | I184: 5 | J184: Mayo | K184: M | L184: 2010
A185: 3836-M-2010 | B185: 2010-05-21 | C185: Cancel. Cred. Municipal | D185: Archivadas | E185: Cambio de residencia habitual | F185: Regidor(a) Propietario(a) | I185: 5 | J185: Mayo | K185: M | L185: 2010
A186: 3838-M-2010 | B186: 2010-05-21 | C186: Cancel. Cred. Municipal | D186: Canceladas | E186: Renuncia | F186: Síndico(a) Propietario(a) | G186: Liberación Nacional | I186: 5 | J186: Mayo | K186: M | L186: 2010
A187: 3839-M-2010 | B187: 2010-05-21 | C187: Cancel. Cred. Municipal | D187: Canceladas | E187: Renuncia | F187: Concejal Propietario(a) | G187: Unidad Social Cristiana | I187: 5 | J187: Mayo | K187: M | L187: 2010
A188: 3884-M-2010 | B188: 2010-05-25 | C188: Cancel. Cred. Municipal | D188: Canceladas | E188: Renuncia | F188: Síndico(a) Propietario(a) y Suplente | G188: Liberación Nacional | I188: 5 | J188: Mayo | K188: M | L188: 2010
A189: 3885-M-2010 | B189: 2010-05-25 | C189: Cancel. Cred. Municipal | D189: Canceladas | E189: Renuncia | F189: Síndico(a) Propietario(a) | G189: Unidad Social Cristiana | I189: 5 | J189: Mayo | K189: M | L189: 2010
A190: 3887-M-2010 | B190: 2010-05-25 | C190: Cancel. Cred. Municipal | D190: Canceladas | E190: Renuncia | F190: Síndico(a) Suplente | G190: Liberación Nacional | I190: 5 | J190: Mayo | K190: M | L190: 2010
A191: 3888-M-2010 | B191: 2010-05-25 | C191: Cancel. Cred. Municipal | D191: Canceladas | E191: Renuncia | F191: Síndico(a) Suplente | G191: Liberación Nacional | I191: 5 | J191: Mayo | K191: M | L191: 2010
A192: 3889-M-2010 | B192: 2010-05-25 | C192: Cancel. Cred. Municipal | D192: Canceladas | E192: Renuncia | F192: Concejal Propietario(a) | G192: Liberación Nacional | I192: 5 | J192: Mayo | K192: M | L192: 2010
A193: 3890-M-2010 | B193: 2010-05-25 | C193: Cancel. Cred. Municipal | D193: Archivadas | E193: Otros Motivos | F193: Regidor(a) Propietario(a) | I193: 5 | J193: Mayo | K193: M | L193: 2010
A194: 3911-M-2010 | B194: 2010-05-26 | C194: Cancel. Cred. Municipal | D194: Canceladas | E194: Renuncia | F194: Alcalde(sa) | G194: Liberación Nacional | I194: 5 | J194: Mayo | K194: M | L194: 2010
A195: 3930-M-2010 | B195: 2010-05-28 | C195: Cancel. Cred. Municipal | D195: Canceladas | E195: Renuncia | F195: Síndico(a) Suplente | G195: Liberación Nacional | I195: 5 | J195: Mayo | K195: M | L195: 2010
A196: 3934-M-2010 | B196: 2010-05-28 | C196: Cancel. Cred. Municipal | D196: Canceladas | E196: Renuncia | F196: Síndico(a) Propietario(a) | G196: Liberación Nacional | I196: =MONTH(B196) -> 5 | J196: Mayo | K196: M | L196: 2010
A197: 3935-M-2010 | B197: 2010-05-28 | C197: Cancel. Cred. Municipal | D197: Canceladas | E197: Renuncia | F197: Síndico(a) Propietario(a) | G197: Liberación Nacional | I197: 5 | J197: Mayo | K197: M | L197: 2010
A198: 3936-M-2010 | B198: 2010-05-28 | C198: Cancel. Cred. Municipal | D198: Archivadas | E198: Cambio de residencia habitual | F198: Síndico(a) Propietario(a) | I198: 5 | J198: Mayo | K198: =MID(A198,6,1) -> M | L198: =YEAR(B198) -> 2010
A199: 3973-M-2010 | B199: 2010-06-01 | C199: Cancel. Cred. Municipal | D199: Canceladas | E199: Renuncia | F199: Síndico(a) Propietario(a) | G199: Liberación Nacional | I199: 6 | J199: Junio | K199: M | L199: 2010
A200: 3974-M-2010 | B200: 2010-06-01 | C200: Cancel. Cred. Municipal | D200: Canceladas | E200: Renuncia | F200: Síndico(a) Propietario(a) | G200: Unidad Social Cristiana | I200: 6 | J200: Junio | K200: M | L200: 2010
A201: 3975-M-2010 | B201: 2010-06-01 | C201: Cancel. Cred. Municipal | D201: Canceladas | E201: Renuncia | F201: Síndico(a) Suplente | G201: Curridabat Siglo XXI | I201: 6 | J201: Junio | K201: M | L201: 2010
A202: 3976-M-2010 | B202: 2010-06-01 | C202: Cancel. Cred. Municipal | D202: Canceladas | E202: Renuncia | F202: Síndico(a) Suplente | G202: Liberación Nacional | I202: 6 | J202: Junio | K202: M | L202: 2010
A203: 3977-M-2010 | B203: 2010-06-02 | C203: Cancel. Cred. Municipal | D203: Canceladas | E203: Renuncia | F203: Síndico(a) Propietario(a) | G203: Liberación Nacional | I203: 6 | J203: Junio | K203: M | L203: 2010
... 30 more rows

Sheet MENU
A6: C1
A7: =LEFT(C7,4) -> 
C24: Observaciones al
C25: correo electrónico: dejecutiva@tse.go.cr
A26: =LEFT(C26,4) -> 

Sheet 1
A1: CUADRO 1
A3: COSTA RICA: TOTAL Y VARIACIÓN DEL ELECTORADO
A4: ENTRE FEBRERO DE 2010 Y DICIEMBRE DE 2010
A5: SEGÚN PROVINCIA Y SEXO
A9: Provincia y sexo | B9: Padrón Nacional Electoral | G9: Variación
B10: Febrero 2010 1/ | D10: Diciembre 2010 2/ | G10: Absoluto | I10: Porcentaje
A12: Costa Rica | B12: 2822491 | D12: 2866217 | G12: 43726 | I12: 1.549198917
A13: Hombres | B13: 1409411 | D13: 1430857 | G13: 21446 | I13: 1.521628538
A14: Mujeres | B14: 1413080 | D14: 1435360 | G14: 22280 | I14: 1.57669771
A16: San José | B16: 1008177 | D16: 1016678 | G16: 8501 | I16: 0.8432051118
A17: Hombres | B17: 491462 | D17: 495505 | G17: 4043 | I17: 0.8226475292
A18: Mujeres | B18: 516715 | D18: 521173 | G18: 4458 | I18: 0.8627580001
A20: Alajuela | B20: 524215 | D20: 533285 | G20: 9070 | I20: 1.730206118
A21: Hombres | B21: 264559 | D21: 269128 | G21: 4569 | I21: 1.727024974
A22: Mujeres | B22: 259656 | D22: 264157 | G22: 4501 | I22: 1.73344733
A24: Cartago | B24: 328782 | D24: 334473 | G24: 5691 | I24: 1.730934175
A25: Hombres | B25: 164137 | D25: 167036 | G25: 2899 | I25: 1.766207497
A26: Mujeres | B26: 164645 | D26: 167437 | G26: 2792 | I26: 1.695769686
A28: Heredia | B28: 278544 | D28: 283771 | G28: 5227 | I28: 1.876543742
A29: Hombres | B29: 137417 | D29: 139912 | G29: 2495 | I29: 1.815641442
A30: Mujeres | B30: 141127 | D30: 143859 | G30: 2732 | I30: 1.935845019
A32: Guanacaste | B32: 199237 | D32: 203614 | G32: 4377 | I32: 2.196881101
A33: Hombres | B33: 101106 | D33: 103249 | G33: 2143 | I33: 2.119557692
A34: Mujeres | B34: 98131 | D34: 100365 | G34: 2234 | I34: 2.276548695
A36: Puntarenas | B36: 259408 | D36: 265197 | G36: 5789 | I36: 2.231619688
A37: Hombres | B37: 134213 | D37: 136989 | G37: 2776 | I37: 2.068354034
A38: Mujeres | B38: 125195 | D38: 128208 | G38: 3013 | I38: 2.406645633
A40: Limón | B40: 224128 | D40: 228491 | G40: 4363 | I40: 1.946655483
A41: Hombres | B41: 116517 | D41: 118700 | G41: 2183 | I41: 1.873546349
A42: Mujeres | B42: 107611 | D42: 109791 | G42: 2180 | I42: 2.025815205
A44: En el extranjero 3/ | B44: NA | D44: 708 | G44: NA | I44: NA
A45: Hombres | B45: NA | D45: 338 | G45: NA | I45: NA
A46: Mujeres | B46: NA | D46: 370 | G46: NA | I46: NA
A49: 1/ El Padrón Electoral se cerró en setiembre 2009 para las elecciones presidenciales de febrero 2010.
A50: 2/ Incluye las personas menores que tramitaron su cédula y cumplirán 18 años hasta el 5 de diciembre de 2010. Según el artículo 76 de la Ley 3504: "Ley Orgánica del Tribunal Supremo de Elecciones y del Registro Civil".
A51: 3/ Costarricenses inscritos que pueden ejercer el voto en extranjero para designar los puestos de presidencia y vicepresidencias, así como en consultas populares de orden nacional, según el artículo 187 del Código Electoral.
A52: NA: No Aplica.
A53: Fuente: Sección Padrón Electoral del Tribunal Supremo de Elecciones.

Sheet 2
A1: CUADRO 2
A3: COSTA RICA: TOTAL DE ELECTORES EN EL PADRÓN PARA LAS ELECCIONES
A4: DE FEBRERO DE 2010 Y EN EL PADRÓN AL 31 DE DICIEMBRE DE 2010
A5: POR SEXO, SEGÚN PROVINCIA Y CANTÓN
A7: Provincia y cantón | B7: Padrón Nacional Electoral
B8: Febrero 2010 | I8: Diciembre 20101/
B9: Total | D9: Hombres | F9: Mujeres | I9: Total | K9: Hombres | M9: Mujeres
A11: Costa Rica | B11: 2822491 | D11: 1409411 | F11: 1413080 | G11: 0 | I11: 2866217 | J11: 0 | K11: 1430857 | L11: 0 | M11: 1435360 | N11: =N21+N60+N77+N87+N115+N128+N141 -> 0
A12: San José | B12: 1008177 | D12: 491462 | F12: 516715 | G12: 0 | I12: 1016678 | K12: 495505 | M12: 521173 | N12: =N21 -> 0
A13: Alajuela | B13: 524215 | D13: 264559 | F13: 259656 | G13: 0 | I13: 533285 | K13: 269128 | M13: 264157 | N13: =N60 -> 0
A14: Cartago | B14: 328782 | D14: 164137 | F14: 164645 | G14: 0 | I14: 334473 | K14: 167036 | M14: 167437 | N14: =N77 -> 0
A15: Heredia | B15: 278544 | D15: 137417 | F15: 141127 | G15: 0 | I15: 283771 | K15: 139912 | M15: 143859 | N15: =N87 -> 0
A16: Guanacaste | B16: 199237 | D16: 101106 | F16: 98131 | G16: 0 | I16: 203614 | K16: 103249 | M16: 100365 | N16: =N115 -> 0
A17: Puntarenas | B17: 259408 | D17: 134213 | F17: 125195 | G17: 0 | I17: 265197 | K17: 136989 | M17: 128208 | N17: =N128 -> 0
A18: Limón | B18: 224128 | D18: 116517 | F18: 107611 | G18: 0 | I18: 228491 | K18: 118700 | M18: 109791 | N18: =N141 -> 0
A19: En el extranjero 1/ | B19: NA | D19: NA | F19: NA | I19: 708 | J19: 0 | K19: 338 | L19: 0 | M19: 370
A21: San José | B21: 1008177 | D21: 491462 | F21: 516715 | I21: 1016678 | K21: 495505 | M21: 521173
A22: San José | B22: 226027 | D22: 108419 | F22: 117608 | I22: 225542 | K22: 108215 | M22: 117327
A23: Escazú | B23: 39855 | D23: 19409 | F23: 20446 | I23: 40526 | K23: 19736 | M23: 20790
A24: Desamparados | B24: 143636 | D24: 70487 | F24: 73149 | I24: 144901 | K24: 71011 | M24: 73890
A25: Puriscal | B25: 24260 | D25: 12227 | F25: 12033 | I25: 24663 | K25: 12429 | M25: 12234
A26: Tarrazú | B26: 10376 | D26: 5328 | F26: 5048 | I26: 10616 | K26: 5449 | M26: 5167
A27: Aserrí | B27: 36900 | D27: 18456 | F27: 18444 | I27: 37616 | K27: 18801 | M27: 18815
A28: Mora | B28: 17043 | D28: 8457 | F28: 8586 | I28: 17413 | K28: 8641 | M28: 8772
A29: Goicoechea | B29: 85706 | D29: 41135 | F29: 44571 | I29: 85797 | K29: 41130 | M29: 44667
A30: Santa Ana | B30: 27313 | D30: 13439 | F30: 13874 | I30: 27941 | K30: 13729 | M30: 14212
A31: Alajuelita | B31: 44270 | D31: 21997 | F31: 22273 | I31: 44907 | K31: 22315 | M31: 22592
A32: Vázquez de Coronado | B32: 44773 | D32: 21667 | F32: 23106 | I32: 45831 | K32: 22200 | M32: 23631
A33: Acosta | B33: 14081 | D33: 7371 | F33: 6710 | I33: 14354 | K33: 7482 | M33: 6872
A34: Tibás | B34: 55673 | D34: 26245 | F34: 29428 | I34: 55315 | K34: 26064 | M34: 29251
A35: Moravia | B35: 39778 | D35: 18992 | F35: 20786 | I35: 40392 | K35: 19306 | M35: 21086
A36: Montes de Oca | B36: 41139 | D36: 19137 | F36: 22002 | I36: 41135 | K36: 19190 | M36: 21945
A37: Turrubares | B37: 3963 | D37: 2078 | F37: 1885 | I37: 4187 | K37: 2195 | M37: 1992
A38: Dota | B38: 4789 | D38: 2424 | F38: 2365 | I38: 4836 | K38: 2437 | M38: 2399
A39: Curridabat | B39: 43957 | D39: 21209 | F39: 22748 | I39: 44286 | K39: 21313 | M39: 22973
A40: Pérez Zeledón | B40: 96629 | D40: 48893 | F40: 47736 | I40: 98271 | K40: 49699 | M40: 48572
A41: León Cortés | B41: 8009 | D41: 4092 | F41: 3917 | I41: 8149 | K41: 4163 | M41: 3986
N43: continúa…
A50: CUADRO 2
A52: COSTA RICA: TOTAL DE ELECTORES EN EL PADRÓN PARA LAS ELECCIONES
A53: DE FEBRERO DE 2010 Y EN EL PADRÓN AL 31 DE DICIEMBRE DE 2010
A54: POR SEXO, SEGÚN PROVINCIA Y CANTÓN
A56: Provincia y cantón | B56: Padrón Nacional Electoral
B57: Febrero 2010 | I57: Diciembre 20101/
B58: Total | D58: Hombres | F58: Mujeres | I58: Total | K58: Hombres | M58: Mujeres
A60: Alajuela | B60: 524215 | D60: 264559 | F60: 259656 | I60: 533285 | K60: 269128 | M60: 264157
A61: Alajuela | B61: 170966 | D61: 85994 | F61: 84972 | I61: 173149 | K61: 87161 | M61: 85988
A62: San Ramón | B62: 52853 | D62: 26319 | F62: 26534 | I62: 53851 | K62: 26770 | M62: 27081
A63: Grecia | B63: 50109 | D63: 25111 | F63: 24998 | I63: 50974 | K63: 25480 | M63: 25494
A64: San Mateo | B64: 3798 | D64: 1981 | F64: 1817 | I64: 3822 | K64: 1984 | M64: 1838
A65: Atenas | B65: 17379 | D65: 8753 | F65: 8626 | I65: 17658 | K65: 8873 | M65: 8785
A66: Naranjo | B66: 27740 | D66: 13786 | F66: 13954 | I66: 28029 | K66: 13921 | M66: 14108
A67: Palmares | B67: 24911 | D67: 12331 | F67: 12580 | I67: 25315 | K67: 12541 | M67: 12774
A68: Poás | B68: 17866 | D68: 8989 | F68: 8877 | I68: 18233 | K68: 9174 | M68: 9059
A69: Orotina | B69: 12685 | D69: 6363 | F69: 6322 | I69: 12953 | K69: 6479 | M69: 6474
A70: San Carlos | B70: 86525 | D70: 44203 | F70: 42322 | I70: 88519 | K70: 45250 | M70: 43269
A71: Alfaro Ruiz | B71: 7844 | D71: 3918 | F71: 3926 | I71: 7973 | K71: 3999 | M71: 3974
A72: Valverde Vega | B72: 12623 | D72: 6283 | F72: 6340 | I72: 12819 | K72: 6382 | M72: 6437
A73: Upala | B73: 21183 | D73: 11122 | F73: 10061 | I73: 21797 | K73: 11432 | M73: 10365
A74: Los Chiles | B74: 9004 | D74: 4838 | F74: 4166 | I74: 9243 | K74: 4991 | M74: 4252
A75: Guatuso | B75: 8729 | D75: 4568 | F75: 4161 | I75: 8950 | K75: 4691 | M75: 4259
A77: Cartago | B77: 328782 | D77: 164137 | F77: 164645 | I77: 334473 | K77: 167036 | M77: 167437
A78: Cartago | B78: 104564 | D78: 51703 | F78: 52861 | I78: 106013 | K78: 52424 | M78: 53589
A79: Paraíso | B79: 39163 | D79: 19609 | F79: 19554 | I79: 39836 | K79: 19941 | M79: 19895
A80: La Unión | B80: 57841 | D80: 28779 | F80: 29062 | I80: 59152 | K80: 29511 | M80: 29641
A81: Jiménez | B81: 10397 | D81: 5405 | F81: 4992 | I81: 10600 | K81: 5498 | M81: 5102
A82: Turrialba | B82: 51433 | D82: 25846 | F82: 25587 | I82: 51904 | K82: 26079 | M82: 25825
A83: Alvarado | B83: 8510 | D83: 4307 | F83: 4203 | I83: 8697 | K83: 4396 | M83: 4301
A84: Oreamuno | B84: 30006 | D84: 14809 | F84: 15197 | I84: 30700 | K84: 15159 | M84: 15541
A85: El Guarco | B85: 26868 | D85: 13679 | F85: 13189 | I85: 27571 | K85: 14028 | M85: 13543
A87: Heredia | B87: 278544 | D87: 137417 | F87: 141127 | I87: 283771 | K87: 139912 | M87: 143859
A88: Heredia | B88: 84511 | D88: 40527 | F88: 43984 | I88: 85356 | K88: 40946 | M88: 44410
A89: Barva | B89: 26982 | D89: 13248 | F89: 13734 | I89: 27552 | K89: 13533 | M89: 14019
A90: Santo Domingo | B90: 30208 | D90: 14973 | F90: 15235 | I90: 30722 | K90: 15184 | M90: 15538
A91: Santa Bárbara | B91: 22277 | D91: 11091 | F91: 11186 | I91: 22788 | K91: 11356 | M91: 11432
A92: San Rafael | B92: 29077 | D92: 14460 | F92: 14617 | I92: 29538 | K92: 14634 | M92: 14904
A93: San Isidro | B93: 12800 | D93: 6407 | F93: 6393 | I93: 13112 | K93: 6576 | M93: 6536
A94: Belén | B94: 15687 | D94: 7769 | F94: 7918 | I94: 15982 | K94: 7880 | M94: 8102
A95: Flores | B95: 13404 | D95: 6525 | F95: 6879 | I95: 13761 | K95: 6731 | M95: 7030
A96: San Pablo | B96: 17791 | D96: 8586 | F96: 9205 | I96: 18343 | K96: 8855 | M96: 9488
A97: Sarapiquí | B97: 25807 | D97: 13831 | F97: 11976 | I97: 26617 | K97: 14217 | M97: 12400
N101: continúa…
A105: CUADRO 2
A107: COSTA RICA: TOTAL DE ELECTORES EN EL PADRÓN PARA LAS ELECCIONES
A108: DE FEBRERO DE 2010 Y EN EL PADRÓN AL 31 DE DICIEMBRE DE 2010
A109: POR SEXO, SEGÚN PROVINCIA Y CANTÓN
A111: Provincia y cantón | B111: Padrón Nacional Electoral
B112: Febrero 2010 | I112: Diciembre 20101/
B113: Total | D113: Hombres | F113: Mujeres | I113: Total | K113: Hombres | M113: Mujeres
A115: Guanacaste | B115: 199237 | D115: 101106 | F115: 98131 | I115: 203614 | K115: 103249 | M115: 100365
A116: Liberia | B116: 36952 | D116: 18465 | F116: 18487 | I116: 37797 | K116: 18911 | M116: 18886
A117: Nicoya | B117: 34993 | D117: 17705 | F117: 17288 | I117: 35669 | K117: 18012 | M117: 17657
A118: Santa Cruz | B118: 33780 | D118: 17303 | F118: 16477 | I118: 34567 | K118: 17669 | M118: 16898
A119: Bagaces | B119: 10928 | D119: 5566 | F119: 5362 | I119: 11245 | K119: 5717 | M119: 5528
A120: Carrillo | B120: 19540 | D120: 9955 | F120: 9585 | I120: 20050 | K120: 10219 | M120: 9831
A121: Cañas | B121: 17069 | D121: 8576 | F121: 8493 | I121: 17344 | K121: 8696 | M121: 8648
A122: Abangares | B122: 11481 | D122: 5910 | F122: 5571 | I122: 11763 | K122: 6040 | M122: 5723
A123: Tilarán | B123: 13144 | D123: 6609 | F123: 6535 | I123: 13309 | K123: 6702 | M123: 6607
A124: Nandayure | B124: 7390 | D124: 3861 | F124: 3529 | I124: 7489 | K124: 3909 | M124: 3580
A125: La Cruz | B125: 9025 | D125: 4627 | F125: 4398 | I125: 9262 | K125: 4732 | M125: 4530
A126: Hojancha | B126: 4935 | D126: 2529 | F126: 2406 | I126: 5119 | K126: 2642 | M126: 2477
A128: Puntarenas | B128: 259408 | D128: 134213 | F128: 125195 | I128: 265197 | K128: 136989 | M128: 128208
A129: Puntarenas | B129: 76163 | D129: 39160 | F129: 37003 | I129: 77238 | K129: 39656 | M129: 37582
A130: Esparza | B130: 18283 | D130: 9077 | F130: 9206 | I130: 18825 | K130: 9370 | M130: 9455
A131: Buenos Aires | B131: 26649 | D131: 14146 | F131: 12503 | I131: 27392 | K131: 14450 | M131: 12942
A132: Montes de Oro | B132: 8556 | D132: 4251 | F132: 4305 | I132: 8750 | K132: 4337 | M132: 4413
A133: Osa | B133: 18252 | D133: 9729 | F133: 8523 | I133: 18664 | K133: 9964 | M133: 8700
A134: Aguirre | B134: 16283 | D134: 8703 | F134: 7580 | I134: 16693 | K134: 8909 | M134: 7784
A135: Golfito | B135: 24375 | D135: 12707 | F135: 11668 | I135: 25019 | K135: 13054 | M135: 11965
A136: Coto Brus | B136: 25753 | D136: 13080 | F136: 12673 | I136: 26188 | K136: 13291 | M136: 12897
A137: Parrita | B137: 9503 | D137: 4985 | F137: 4518 | I137: 9776 | K137: 5118 | M137: 4658
A138: Corredores | B138: 27134 | D138: 13839 | F138: 13295 | I138: 27936 | K138: 14168 | M138: 13768
A139: Garabito | B139: 8457 | D139: 4536 | F139: 3921 | I139: 8716 | K139: 4672 | M139: 4044
A141: Limón | B141: 224128 | D141: 116517 | F141: 107611 | I141: 228491 | K141: 118700 | M141: 109791
A142: Limón | B142: 61180 | D142: 30994 | F142: 30186 | I142: 61603 | K142: 31186 | M142: 30417
A143: Pococí | B143: 73072 | D143: 38274 | F143: 34798 | I143: 75016 | K143: 39302 | M143: 35714
A144: Siquirres | B144: 33841 | D144: 17811 | F144: 16030 | I144: 34544 | K144: 18170 | M144: 16374
A145: Talamanca | B145: 15029 | D145: 8009 | F145: 7020 | I145: 15458 | K145: 8212 | M145: 7246
A146: Matina | B146: 17995 | D146: 9507 | F146: 8488 | I146: 18313 | K146: 9640 | M146: 8673
A147: Guácimo | B147: 23011 | D147: 11922 | F147: 11089 | I147: 23557 | K147: 12190 | M147: 11367
A149: En el extranjero | B149: NA | D149: NA | F149: NA | I149: 708 | K149: 338 | M149: 370
A152: 1/ Costarricenses inscritos que pueden ejercer el voto en extranjero para designar los puestos de presidencia y vicepresidencias, así como en consultas populares de orden nacional, según el artículo 187 del Código Electoral.
A153: NA: No Aplica.
A154: Fuente: Sección Padrón Electoral del Tribunal Supremo de Elecciones.

Sheet 3
A1: CUADRO 3
A3: COSTA RICA: TOTAL DE ELECTORES POR PROVINCIA, SEGÚN SEXO Y
A4: GRUPO DE EDAD, AL 31 DE DICIEMBRE DE 20101/
A6: Sexo y grupo de edad | B6: Total | C6: San José | D6: Alajuela | E6: Cartago | F6: Heredia | G6: Guanacaste | H6: Puntarenas | I6: Limón | J6: En el extranjero 2/
A8: Costa Rica | B8: 2866217 | C8: 1016678 | D8: 533285 | E8: 334473 | F8: 283771 | G8: 203614 | H8: 265197 | I8: 228491 | J8: 708
A9: 17 - 19 | B9: 128710 | C9: 41390 | D9: 24825 | E9: 15625 | F9: 12016 | G9: 9659 | H9: 13143 | I9: 12029 | J9: 23
A10: 20 - 24 | B10: 396175 | C10: 132595 | D10: 76573 | E10: 47516 | F10: 37050 | G10: 28674 | H10: 38671 | I10: 35030 | J10: 66
A11: 25 - 29 | B11: 366983 | C11: 128466 | D11: 67942 | E11: 42006 | F11: 36493 | G11: 26072 | H11: 35181 | I11: 30722 | J11: 101
A12: 30 - 34 | B12: 314091 | C12: 111647 | D12: 56716 | E12: 37020 | F12: 32405 | G12: 22048 | H12: 28898 | I12: 25233 | J12: 124
A13: 35 - 39 | B13: 272748 | C13: 93639 | D13: 49666 | E13: 32899 | F13: 27808 | G13: 19325 | H13: 26051 | I13: 23272 | J13: 88
A14: 40 - 44 | B14: 274689 | C14: 94543 | D14: 51767 | E14: 33438 | F14: 27328 | G14: 19166 | H14: 25819 | I14: 22537 | J14: 91
A15: 45 - 49 | B15: 269952 | C15: 95926 | D15: 51319 | E15: 31934 | F15: 27220 | G15: 18619 | H15: 24138 | I15: 20723 | J15: 73
A16: 50 - 54 | B16: 230727 | C16: 84465 | D16: 42988 | E16: 26593 | F16: 23502 | G16: 15736 | H16: 20150 | I16: 17246 | J16: 47
A17: 55 - 59 | B17: 181082 | C17: 68161 | D17: 32313 | E17: 20202 | F17: 18661 | G17: 12327 | H17: 15760 | I17: 13620 | J17: 38
A18: 60 - 64 | B18: 132513 | C18: 50769 | D18: 23854 | E18: 14366 | F18: 13241 | G18: 9301 | H18: 11453 | I18: 9502 | J18: 27
A19: 65 - 69 | B19: 99191 | C19: 37488 | D19: 18647 | E19: 11298 | F19: 9469 | G19: 7052 | H19: 8707 | I19: 6518 | J19: 12
A20: 70 - 74 | B20: 75336 | C20: 28488 | D20: 14137 | E20: 8406 | F20: 6939 | G20: 5724 | H20: 6741 | I20: 4892 | J20: 9
A21: 75 - 79 | B21: 54646 | C21: 21241 | D21: 10006 | E21: 6032 | F21: 5079 | G21: 4221 | H21: 4782 | I21: 3282 | J21: 3
A22: 80 - 84 | B22: 38574 | C22: 15670 | D22: 6831 | E22: 4124 | F22: 3644 | G22: 2965 | H22: 3193 | I22: 2142 | J22: 5
A23: 85 y más | B23: 30800 | C23: 12190 | D23: 5701 | E23: 3014 | F23: 2916 | G23: 2725 | H23: 2510 | I23: 1743 | J23: 1
A25: Hombres | B25: 1430857 | C25: 495505 | D25: 269128 | E25: 167036 | F25: 139912 | G25: 103249 | H25: 136989 | I25: 118700 | J25: 338
A26: 17 - 19 | B26: 65515 | C26: 20938 | D26: 12753 | E26: 8042 | F26: 6120 | G26: 4882 | H26: 6648 | I26: 6124 | J26: 8
A27: 20 - 24 | B27: 202588 | C27: 67328 | D27: 39541 | E27: 24419 | F27: 18890 | G27: 14693 | H27: 19853 | I27: 17832 | J27: 32
A28: 25 - 29 | B28: 186618 | C28: 64943 | D28: 34846 | E28: 21450 | F28: 18380 | G28: 13394 | H28: 18034 | I28: 15523 | J28: 48
A29: 30 - 34 | B29: 158757 | C29: 56528 | D29: 28971 | E29: 18599 | F29: 16348 | G29: 11007 | H29: 14549 | I29: 12693 | J29: 62
A30: 35 - 39 | B30: 137179 | C30: 46795 | D30: 24961 | E30: 16315 | F30: 13985 | G30: 9694 | H30: 13443 | I30: 11945 | J30: 41
A31: 40 - 44 | B31: 137611 | C31: 46804 | D31: 26004 | E31: 16636 | F31: 13458 | G31: 9770 | H31: 13260 | I31: 11638 | J31: 41
A32: 45 - 49 | B32: 134743 | C32: 46842 | D32: 25658 | E32: 15944 | F32: 13316 | G32: 9540 | H32: 12568 | I32: 10837 | J32: 38
A33: 50 - 54 | B33: 114274 | C33: 40288 | D33: 21651 | E33: 13177 | F33: 11509 | G33: 8002 | H33: 10450 | I33: 9176 | J33: 21
A34: 55 - 59 | B34: 88925 | C34: 31921 | D34: 16287 | E34: 9859 | F34: 8965 | G34: 6267 | H34: 8232 | I34: 7373 | J34: 21
A35: 60 - 64 | B35: 64728 | C35: 23539 | D35: 11804 | E35: 6978 | F35: 6343 | G35: 4629 | H35: 6105 | I35: 5317 | J35: 13
A36: 65 - 69 | B36: 48111 | C36: 17131 | D36: 9211 | E36: 5543 | F36: 4444 | G36: 3580 | H36: 4567 | I36: 3629 | J36: 6
A37: 70 - 74 | B37: 36135 | C37: 12679 | D37: 6897 | E37: 4051 | F37: 3185 | G37: 2931 | H37: 3668 | I37: 2720 | J37: 4
A38: 75 - 79 | B38: 25278 | C38: 8953 | D38: 4813 | E38: 2831 | F38: 2213 | G38: 2107 | H38: 2538 | I38: 1822 | J38: 1
A39: 80 - 84 | B39: 17549 | C39: 6392 | D39: 3188 | E39: 1962 | F39: 1603 | G39: 1476 | H39: 1765 | I39: 1161 | J39: 2
A40: 85 y más | B40: 12846 | C40: 4424 | D40: 2543 | E40: 1230 | F40: 1153 | G40: 1277 | H40: 1309 | I40: 910 | J40: 0
A42: Mujeres | B42: 1435360 | C42: 521173 | D42: 264157 | E42: 167437 | F42: 143859 | G42: 100365 | H42: 128208 | I42: 109791 | J42: 370
A43: 17 - 19 | B43: 63195 | C43: 20452 | D43: 12072 | E43: 7583 | F43: 5896 | G43: 4777 | H43: 6495 | I43: 5905 | J43: 15
A44: 20 - 24 | B44: 193587 | C44: 65267 | D44: 37032 | E44: 23097 | F44: 18160 | G44: 13981 | H44: 18818 | I44: 17198 | J44: 34
A45: 25 - 29 | B45: 180365 | C45: 63523 | D45: 33096 | E45: 20556 | F45: 18113 | G45: 12678 | H45: 17147 | I45: 15199 | J45: 53
A46: 30 - 34 | B46: 155334 | C46: 55119 | D46: 27745 | E46: 18421 | F46: 16057 | G46: 11041 | H46: 14349 | I46: 12540 | J46: 62
A47: 35 - 39 | B47: 135569 | C47: 46844 | D47: 24705 | E47: 16584 | F47: 13823 | G47: 9631 | H47: 12608 | I47: 11327 | J47: 47
A48: 40 - 44 | B48: 137078 | C48: 47739 | D48: 25763 | E48: 16802 | F48: 13870 | G48: 9396 | H48: 12559 | I48: 10899 | J48: 50
A49: 45 - 49 | B49: 135209 | C49: 49084 | D49: 25661 | E49: 15990 | F49: 13904 | G49: 9079 | H49: 11570 | I49: 9886 | J49: 35
A50: 50 - 54 | B50: 116453 | C50: 44177 | D50: 21337 | E50: 13416 | F50: 11993 | G50: 7734 | H50: 9700 | I50: 8070 | J50: 26
A51: 55 - 59 | B51: 92157 | C51: 36240 | D51: 16026 | E51: 10343 | F51: 9696 | G51: 6060 | H51: 7528 | I51: 6247 | J51: 17
A52: 60 - 64 | B52: 67785 | C52: 27230 | D52: 12050 | E52: 7388 | F52: 6898 | G52: 4672 | H52: 5348 | I52: 4185 | J52: 14
A53: 65 - 69 | B53: 51080 | C53: 20357 | D53: 9436 | E53: 5755 | F53: 5025 | G53: 3472 | H53: 4140 | I53: 2889 | J53: 6
A54: 70 - 74 | B54: 39201 | C54: 15809 | D54: 7240 | E54: 4355 | F54: 3754 | G54: 2793 | H54: 3073 | I54: 2172 | J54: 5
A55: 75 - 79 | B55: 29368 | C55: 12288 | D55: 5193 | E55: 3201 | F55: 2866 | G55: 2114 | H55: 2244 | I55: 1460 | J55: 2
A56: 80 - 84 | B56: 21025 | C56: 9278 | D56: 3643 | E56: 2162 | F56: 2041 | G56: 1489 | H56: 1428 | I56: 981 | J56: 3
A57: 85 y más | B57: 17954 | C57: 7766 | D57: 3158 | E57: 1784 | F57: 1763 | G57: 1448 | H57: 1201 | I57: 833 | J57: 1
A60: 1/ Incluye las personas menores que tramitarán su cédula y cumplierán 18 años hasta el 5 de diciembre de 2010. Según el artículo 76 de la Ley 3504: "Ley Orgánica del Tribunal Supremo de Elecciones y del Registro Civil".
A61: 2/ Costarricenses inscritos que pueden ejercer el voto en extranjero para designar los puestos de presidencia y vicepresidencias, así como en consultas populares de orden nacional, según el artículo 187 del Código Electoral.
A62: Fuente: Sección Padrón Electoral del Tribunal Supremo de Elecciones.

Sheet G1
I2: GRÁFICO 1
A4: DISTRIBUCIÓN DEL TOTAL DE ELECTORES POR SEXO Y GRUPOS QUINQUENALES DE EDAD, DICIEMBRE DE 2010 | I4: COSTA RICA: PORCENTAJE DE ELECTORES POR SEXO Y GRUPO DE EDAD
I5: AL 31 DE DICIEMBRE DE 2010
A7: GRUPOS DE EDAD | B7: ELECTORES | F7: PORCENTAJE
B8: Total | C8: Hombres | D8: Mujeres | F8: Hombres | G8: Mujeres
B10: 2866217 | C10: 1430857 | D10: 1435360
A12: Menos de 20 | B12: 128710 | C12: 65515 | D12: 63195 | F12: -4.578724499 | G12: 4.416583907
A13: 20 a 24 | B13: 396175 | C13: 202588 | D13: 193587 | F13: -14.1585078 | G13: 13.52944424
A14: 25 a 29 | B14: 366983 | C14: 186618 | D14: 180365 | F14: -13.04239347 | G14: 12.60538265
A15: 30 a 34 | B15: 314091 | C15: 158757 | D15: 155334 | F15: -11.09523873 | G15: 10.85601147
A16: 35 a 39 | B16: 272748 | C16: 137179 | D16: 135569 | F16: -9.587191452 | G16: 9.474671473
A17: 40 a 44 | B17: 274689 | C17: 137611 | D17: 137078 | F17: -9.617383149 | G17: 9.580132746
A18: 45 a 49 | B18: 269952 | C18: 134743 | D18: 135209 | F18: -9.416943832 | G18: 9.449511726
A19: 50 a 54 | B19: 230727 | C19: 114274 | D19: 116453 | F19: -7.986402555 | G19: 8.138688912
A20: 55 a 59 | B20: 181082 | C20: 88925 | D20: 92157 | F20: -6.21480693 | G20: 6.440685547
A21: 60 a 64 | B21: 132513 | C21: 64728 | D21: 67785 | F21: -4.523722496 | G21: 4.737370681
A22: 65 a 69 | B22: 99191 | C22: 48111 | D22: 51080 | F22: -3.362390511 | G22: 3.569888535
A23: 70 a 74 | B23: 75336 | C23: 36135 | D23: 39201 | F23: -2.525409597 | G23: 2.739686775
A24: 75 a 79 | B24: 54646 | C24: 25278 | D24: 29368 | F24: -1.766633563 | G24: 2.052476243
A25: 80 a 84 | B25: 38574 | C25: 17549 | D25: 21025 | F25: -1.226467774 | G25: 1.469399108
A26: 85 y más | B26: 30800 | C26: 12846 | D26: 17954 | F26: -0.897783636 | G26: 1.254772489
I32: Fuente: Cuadro 3

Sheet 4
A1: CUADRO 4
A3: COSTA RICA: TOTAL DE ELECTORES NATURALIZADOS, POR PAÍS DE ORIGEN
A4: SEGÚN SEXO Y GRUPO DE EDAD, AL 31 DE DICIEMBRE DE 20101/
A6: SEXO Y GRUPO DE EDAD | B6: País de origen
B7: Total | C7: Nicaragua | D7: El Salvador | E7: Colombia | F7: Cuba | G7: China | H7: Panamá | I7: Perú | J7: Resto de países
A9: Costa Rica | B9: 40464 | C9: 21457 | D9: 3211 | E9: 3179 | F9: 1747 | G9: 1598 | H9: 1294 | I9: 1185 | J9: 6793
A10: 17 - 19 | B10: 143 | C10: 59 | D10: 4 | E10: 40 | F10: 17 | G10: 2 | H10: 0 | I10: 1 | J10: 20
A11: 20 - 24 | B11: 564 | C11: 233 | D11: 6 | E11: 107 | F11: 60 | G11: 18 | H11: 4 | I11: 32 | J11: 104
A12: 25 - 29 | B12: 1411 | C12: 819 | D12: 35 | E12: 212 | F12: 55 | G12: 55 | H12: 8 | I12: 52 | J12: 175
A13: 30 - 34 | B13: 3096 | C13: 1624 | D13: 268 | E13: 443 | F13: 104 | G13: 156 | H13: 20 | I13: 96 | J13: 385
A14: 35 - 39 | B14: 4418 | C14: 2327 | D14: 368 | E14: 462 | F14: 190 | G14: 189 | H14: 98 | I14: 143 | J14: 641
A15: 40 - 44 | B15: 5119 | C15: 2719 | D15: 389 | E15: 525 | F15: 227 | G15: 160 | H15: 159 | I15: 141 | J15: 799
A16: 45 - 49 | B16: 4758 | C16: 2340 | D16: 402 | E16: 465 | F16: 251 | G16: 168 | H16: 189 | I16: 175 | J16: 768
A17: 50 - 54 | B17: 4173 | C17: 2078 | D17: 436 | E17: 305 | F17: 203 | G17: 153 | H17: 155 | I17: 160 | J17: 683
A18: 55 - 59 | B18: 3963 | C18: 1883 | D18: 447 | E18: 222 | F18: 183 | G18: 156 | H18: 163 | I18: 149 | J18: 760
A19: 60 - 64 | B19: 3234 | C19: 1557 | D19: 321 | E19: 155 | F19: 121 | G19: 158 | H19: 154 | I19: 103 | J19: 665
A20: 65 - 69 | B20: 2624 | C20: 1431 | D20: 227 | E20: 84 | F20: 93 | G20: 118 | H20: 110 | I20: 52 | J20: 509
A21: 70 - 74 | B21: 2187 | C21: 1252 | D21: 134 | E21: 65 | F21: 84 | G21: 98 | H21: 75 | I21: 42 | J21: 437
A22: 75 - 79 | B22: 1834 | C22: 1131 | D22: 88 | E22: 48 | F22: 54 | G22: 62 | H22: 72 | I22: 17 | J22: 362
A23: 80 - 84 | B23: 1525 | C23: 994 | D23: 51 | E23: 30 | F23: 54 | G23: 63 | H23: 51 | I23: 14 | J23: 268
A24: 85 y más | B24: 1415 | C24: 1010 | D24: 35 | E24: 16 | F24: 51 | G24: 42 | H24: 36 | I24: 8 | J24: 217
A26: Hombres | B26: 18746 | C26: 9554 | D26: 1386 | E26: 1505 | F26: 945 | G26: 831 | H26: 575 | I26: 665 | J26: 3285
A27: 17 - 19 | B27: 72 | C27: 33 | D27: 2 | E27: 22 | F27: 7 | G27: 0 | H27: 0 | I27: 0 | J27: 8
A28: 20 - 24 | B28: 291 | C28: 122 | D28: 3 | E28: 51 | F28: 36 | G28: 12 | H28: 2 | I28: 10 | J28: 55
A29: 25 - 29 | B29: 614 | C29: 320 | D29: 22 | E29: 103 | F29: 22 | G29: 36 | H29: 2 | I29: 36 | J29: 73
A30: 30 - 34 | B30: 1318 | C30: 670 | D30: 126 | E30: 182 | F30: 48 | G30: 84 | H30: 8 | I30: 49 | J30: 151
A31: 35 - 39 | B31: 2000 | C31: 1027 | D31: 163 | E31: 221 | F31: 91 | G31: 105 | H31: 50 | I31: 73 | J31: 270
A32: 40 - 44 | B32: 2428 | C32: 1303 | D32: 173 | E32: 245 | F32: 125 | G32: 72 | H32: 71 | I32: 72 | J32: 367
A33: 45 - 49 | B33: 2133 | C33: 975 | D33: 168 | E33: 230 | F33: 144 | G33: 90 | H33: 80 | I33: 93 | J33: 353
A34: 50 - 54 | B34: 1705 | C34: 726 | D34: 164 | E34: 143 | F34: 124 | G34: 73 | H34: 68 | I34: 86 | J34: 321
A35: 55 - 59 | B35: 1738 | C35: 759 | D35: 165 | E35: 109 | F35: 111 | G35: 79 | H35: 63 | I35: 89 | J35: 363
A36: 60 - 64 | B36: 1556 | C36: 700 | D36: 142 | E36: 77 | F36: 66 | G36: 79 | H36: 62 | I36: 68 | J36: 362
A37: 65 - 69 | B37: 1361 | C37: 704 | D37: 114 | E37: 49 | F37: 55 | G37: 61 | H37: 56 | I37: 35 | J37: 287
A38: 70 - 74 | B38: 1104 | C38: 603 | D38: 69 | E38: 34 | F38: 48 | G38: 48 | H38: 38 | I38: 28 | J38: 236
A39: 75 - 79 | B39: 896 | C39: 544 | D39: 41 | E39: 22 | F39: 24 | G39: 38 | H39: 29 | I39: 11 | J39: 187
A40: 80 - 84 | B40: 804 | C40: 540 | D40: 19 | E40: 12 | F40: 19 | G40: 30 | H40: 28 | I40: 9 | J40: 147
A41: 85 y más | B41: 726 | C41: 528 | D41: 15 | E41: 5 | F41: 25 | G41: 24 | H41: 18 | I41: 6 | J41: 105
A43: Mujeres | B43: 21718 | C43: 11903 | D43: 1825 | E43: 1674 | F43: 802 | G43: 767 | H43: 719 | I43: 520 | J43: 3508
A44: 17 - 19 | B44: 71 | C44: 26 | D44: 2 | E44: 18 | F44: 10 | G44: 2 | H44: 0 | I44: 1 | J44: 12
A45: 20 - 24 | B45: 273 | C45: 111 | D45: 3 | E45: 56 | F45: 24 | G45: 6 | H45: 2 | I45: 22 | J45: 49
A46: 25 - 29 | B46: 797 | C46: 499 | D46: 13 | E46: 109 | F46: 33 | G46: 19 | H46: 6 | I46: 16 | J46: 102
A47: 30 - 34 | B47: 1778 | C47: 954 | D47: 142 | E47: 261 | F47: 56 | G47: 72 | H47: 12 | I47: 47 | J47: 234
A48: 35 - 39 | B48: 2418 | C48: 1300 | D48: 205 | E48: 241 | F48: 99 | G48: 84 | H48: 48 | I48: 70 | J48: 371
A49: 40 - 44 | B49: 2691 | C49: 1416 | D49: 216 | E49: 280 | F49: 102 | G49: 88 | H49: 88 | I49: 69 | J49: 432
A50: 45 - 49 | B50: 2625 | C50: 1365 | D50: 234 | E50: 235 | F50: 107 | G50: 78 | H50: 109 | I50: 82 | J50: 415
A51: 50 - 54 | B51: 2468 | C51: 1352 | D51: 272 | E51: 162 | F51: 79 | G51: 80 | H51: 87 | I51: 74 | J51: 362
A52: 55 - 59 | B52: 2225 | C52: 1124 | D52: 282 | E52: 113 | F52: 72 | G52: 77 | H52: 100 | I52: 60 | J52: 397
A53: 60 - 64 | B53: 1678 | C53: 857 | D53: 179 | E53: 78 | F53: 55 | G53: 79 | H53: 92 | I53: 35 | J53: 303
A54: 65 - 69 | B54: 1263 | C54: 727 | D54: 113 | E54: 35 | F54: 38 | G54: 57 | H54: 54 | I54: 17 | J54: 222
A55: 70 - 74 | B55: 1083 | C55: 649 | D55: 65 | E55: 31 | F55: 36 | G55: 50 | H55: 37 | I55: 14 | J55: 201
A56: 75 - 79 | B56: 938 | C56: 587 | D56: 47 | E56: 26 | F56: 30 | G56: 24 | H56: 43 | I56: 6 | J56: 175
A57: 80 - 84 | B57: 721 | C57: 454 | D57: 32 | E57: 18 | F57: 35 | G57: 33 | H57: 23 | I57: 5 | J57: 121
A58: 85 y más | B58: 689 | C58: 482 | D58: 20 | E58: 11 | F58: 26 | G58: 18 | H58: 18 | I58: 2 | J58: 112
A61: 1/ Incluye las personas menores que tramitarán su cédula y cumplirán 18 años hasta el 5 de diciembre de 2010. Según el artículo 76 de la Ley 3504: "Ley Orgánica del Tribunal Supremo de Elecciones y del Registro Civil".
A62: Fuente: Sección Padrón Electoral del Tribunal Supremo de Elecciones.

Sheet G2
A2: Costa Rica | B2: 2866217 | E2: GRÁFICO 2
A4: Resto de países | B4: 6793 | C4: 16.78776196 | E4: COSTA RICA: PORCENTAJE DE ELECTORES NATURALIZADOS, POR PAÍS DE ORIGEN
A5: Perú | B5: 1185 | C5: 2.928529063 | E5: AL 31 DE DICIEMBRE DE 2010
A6: Panamá | B6: 1294 | C6: 3.19790431
A7: China | B7: 1598 | C7: 3.949189403
A8: Cuba | B8: 1747 | C8: 4.317417952
A9: Colombia | B9: 3179 | C9: 7.856366153
A10: El Salvador | B10: 3211 | C10: 7.935448794
A11: Nicaragua | B11: 21457 | C11: 53.02738236
B12: 40464
C17: 0
C19: 0
C21: 0
C23: 0
C25: 0
C27: 0
C29: 0
C31: 0
E32: Fuente: Cuadro 4

Sheet 5
A1: CUADRO 5
A3: COSTA RICA: NUEVOS ELECTORES1/ EMPADRONADOS DURANTE EL AÑO
A4: POR MES, SEGÚN PROVINCIA Y SEXO, AL 31 DE DICIEMBRE DE 2010
A6: Provincia y sexo | B6: Total | C6: Enero | D6: Febrero | E6: Marzo | F6: Abril | G6: Mayo | H6: Junio | I6: Julio | J6: Agosto | K6: Setiembre | L6: Octubre | M6: Noviembre | N6: Diciembre
A8: Costa Rica | B8: 56707 | D8: 0 | E8: 0 | F8: 0 | G8: 38267 | H8: 8031 | I8: 7278 | J8: 3091 | K8: 40 | L8: =SUM(L9:L10) -> 0 | M8: =#REF!-#REF! ->  | N8: =#REF!-#REF! -> 
A9: Hombres | B9: 29105 | D9: 0 | E9: 0 | F9: 0 | G9: 19815 | H9: 4109 | I9: 3660 | J9: 1498 | K9: 23 | L9: 0 | M9: =#REF!-#REF! ->  | N9: =#REF!-#REF! -> 
A10: Mujeres | B10: 27602 | D10: 0 | E10: 0 | F10: 0 | G10: 18452 | H10: 3922 | I10: 3618 | J10: 1593 | K10: 17 | L10: 0 | M10: =#REF!-#REF! ->  | N10: =#REF!-#REF! -> 
A12: San José | B12: 23912 | D12: 0 | E12: 0 | F12: 0 | G12: 16488 | H12: 3059 | I12: 3297 | J12: 1056 | K12: 12 | L12: =SUM(L13:L14) -> 0 | M12: =#REF!-#REF! ->  | N12: =#REF!-#REF! -> 
A13: Hombres | B13: 12318 | D13: 0 | E13: 0 | F13: 0 | G13: 8607 | H13: 1513 | I13: 1659 | J13: 532 | K13: 7 | L13: 0 | M13: =#REF!-#REF! ->  | N13: =#REF!-#REF! -> 
A14: Mujeres | B14: 11594 | D14: 0 | E14: 0 | F14: 0 | G14: 7881 | H14: 1546 | I14: 1638 | J14: 524 | K14: 5 | L14: 0 | M14: =#REF!-#REF! ->  | N14: =#REF!-#REF! -> 
A16: Alajuela | B16: 9145 | D16: 0 | E16: 0 | F16: 0 | G16: 6139 | H16: 1306 | I16: 1020 | J16: 672 | K16: 8 | L16: =SUM(L17:L18) -> 0 | M16: =#REF!-#REF! ->  | N16: =#REF!-#REF! -> 
A17: Hombres | B17: 4698 | D17: 0 | E17: 0 | F17: 0 | G17: 3171 | H17: 710 | I17: 508 | J17: 303 | K17: 6 | L17: 0 | M17: =#REF!-#REF! ->  | N17: =#REF!-#REF! -> 
A18: Mujeres | B18: 4447 | D18: 0 | E18: 0 | F18: 0 | G18: 2968 | H18: 596 | I18: 512 | J18: 369 | K18: 2 | L18: 0 | M18: =#REF!-#REF! ->  | N18: =#REF!-#REF! -> 
A20: Cartago | B20: 5779 | D20: 0 | E20: 0 | F20: 0 | G20: 3901 | H20: 832 | I20: 814 | J20: 231 | K20: 1 | L20: =SUM(L21:L22) -> 0 | M20: =#REF!-#REF! ->  | N20: =#REF!-#REF! -> 
A21: Hombres | B21: 2993 | D21: 0 | E21: 0 | F21: 0 | G21: 2048 | H21: 431 | I21: 397 | J21: 117 | K21: 0 | L21: 0 | M21: =#REF!-#REF! ->  | N21: =#REF!-#REF! -> 
A22: Mujeres | B22: 2786 | D22: 0 | E22: 0 | F22: 0 | G22: 1853 | H22: 401 | I22: 417 | J22: 114 | K22: 1 | L22: 0 | M22: =#REF!-#REF! ->  | N22: =#REF!-#REF! -> 
A24: Heredia | B24: 2859 | D24: 0 | E24: 0 | F24: 0 | G24: 1948 | H24: 404 | I24: 373 | J24: 134 | K24: 0 | L24: =SUM(L25:L26) -> 0 | M24: =#REF!-#REF! ->  | N24: =#REF!-#REF! -> 
A25: Hombres | B25: 1498 | D25: 0 | E25: 0 | F25: 0 | G25: 1021 | H25: 217 | I25: 193 | J25: 67 | K25: 0 | L25: 0 | M25: =#REF!-#REF! ->  | N25: =#REF!-#REF! -> 
A26: Mujeres | B26: 1361 | D26: 0 | E26: 0 | F26: 0 | G26: 927 | H26: 187 | I26: 180 | J26: 67 | K26: 0 | L26: 0 | M26: =#REF!-#REF! ->  | N26: =#REF!-#REF! -> 
A28: Guanacaste | B28: 4005 | D28: 0 | E28: 0 | F28: 0 | G28: 2617 | H28: 644 | I28: 489 | J28: 249 | K28: 6 | L28: =SUM(L29:L30) -> 0 | M28: =#REF!-#REF! ->  | N28: =#REF!-#REF! -> 
A29: Hombres | B29: 2036 | D29: 0 | E29: 0 | F29: 0 | G29: 1316 | H29: 328 | I29: 259 | J29: 130 | K29: 3 | L29: 0 | M29: =#REF!-#REF! ->  | N29: =#REF!-#REF! -> 
A30: Mujeres | B30: 1969 | D30: 0 | E30: 0 | F30: 0 | G30: 1301 | H30: 316 | I30: 230 | J30: 119 | K30: 3 | L30: 0 | M30: =#REF!-#REF! ->  | N30: =#REF!-#REF! -> 
A32: Puntarenas | B32: 5266 | D32: 0 | E32: 0 | F32: 0 | G32: 3445 | H32: 898 | I32: 603 | J32: 317 | K32: 3 | L32: =SUM(L33:L34) -> 0 | M32: =#REF!-#REF! ->  | N32: =#REF!-#REF! -> 
A33: Hombres | B33: 2665 | D33: 0 | E33: 0 | F33: 0 | G33: 1779 | H33: 459 | I33: 302 | J33: 124 | K33: 1 | L33: 0 | M33: =#REF!-#REF! ->  | N33: =#REF!-#REF! -> 
A34: Mujeres | B34: 2601 | D34: 0 | E34: 0 | F34: 0 | G34: 1666 | H34: 439 | I34: 301 | J34: 193 | K34: 2 | L34: 0 | M34: =#REF!-#REF! ->  | N34: =#REF!-#REF! -> 
A36: Limón | B36: 5119 | D36: 0 | E36: 0 | F36: 0 | G36: 3413 | H36: 812 | I36: 609 | J36: 279 | K36: 6 | L36: =SUM(L37:L38) -> 0 | M36: =#REF!-#REF! ->  | N36: =#REF!-#REF! -> 
A37: Hombres | B37: 2587 | D37: 0 | E37: 0 | F37: 0 | G37: 1723 | H37: 407 | I37: 301 | J37: 151 | K37: 5 | L37: 0 | M37: =#REF!-#REF! ->  | N37: =#REF!-#REF! -> 
A38: Mujeres | B38: 2532 | D38: 0 | E38: 0 | F38: 0 | G38: 1690 | H38: 405 | I38: 308 | J38: 128 | K38: 1 | L38: 0 | M38: =#REF!-#REF! ->  | N38: =#REF!-#REF! -> 
A40: Partido especial | B40: 419 | D40: 0 | E40: 0 | F40: 0 | G40: 252 | H40: 69 | I40: 52 | J40: 42 | K40: 4 | L40: =SUM(L41:L42) -> 0 | M40: =#REF!-#REF! ->  | N40: =#REF!-#REF! -> 
A41: Hombres | B41: 215 | D41: 0 | E41: 0 | F41: 0 | G41: 123 | H41: 38 | I41: 28 | J41: 25 | K41: 1 | L41: 0 | M41: =#REF!-#REF! ->  | N41: =#REF!-#REF! -> 
A42: Mujeres | B42: 204 | D42: 0 | E42: 0 | F42: 0 | G42: 129 | H42: 31 | I42: 24 | J42: 17 | K42: 3 | L42: 0 | M42: =#REF!-#REF! ->  | N42: =#REF!-#REF! -> 
A44: Naturalizados | B44: 203 | D44: 0 | E44: 0 | F44: 0 | G44: 64 | H44: 7 | I44: 21 | J44: 111 | K44: 0 | L44: =SUM(L45:L46) -> 0 | M44: =#REF!-#REF! ->  | N44: =#REF!-#REF! -> 
A45: Hombres | B45: 95 | D45: 0 | E45: 0 | F45: 0 | G45: 27 | H45: 6 | I45: 13 | J45: 49 | K45: 0 | L45: 0 | M45: =#REF!-#REF! ->  | N45: =#REF!-#REF! -> 
A46: Mujeres | B46: 108 | D46: 0 | E46: 0 | F46: 0 | G46: 37 | H46: 1 | I46: 8 | J46: 62 | K46: 0 | L46: 0 | M46: =#REF!-#REF! ->  | N46: =#REF!-#REF! -> 
A49: 1/ Incluye personas que nacieron del 02/12/1984 al 05/12/1992 de las diferentes provincias, el partido especial
A50: y los naturalizados que no se han empadronado en anteriores procesos electorales.
A51: Nota: El padrón estuvo cerrado por las elecciones presidenciales hasta marzo inclusive, a partir de mayo se aplicó la contabilidad de nuevos electores, sin embargo se volvió a cerrar en setiembre debido al proceso electoral Municipal.
A53: Fuente: Sección Padrón Electoral del Tribunal Supremo de Elecciones.

Sheet 6
A1: CUADRO 6
A3: COSTA RICA: MOVIMIENTOS AL PADRÓN NACIONAL ELECTORAL
A4: POR TIPO DE MOVIMIENTO, SEGÚN MES
A5: AL 31 DE DICIEMBRE DE 2010
A7: Mes | B7: Padrón Nacional Electoral anterior | D7: Tipo de movimiento | O7: Padrón Nacional Electoral actual
D8: Inclusiones | I8: Exclusiones
D9: Cédulas Primera vez1/ | F9: Cédulas renovadas | I9: Defunción | K9: Cédulas vencidas2/ | M9: Otras
A11: Enero | B11: 2822491 | D11: 0 | F11: 0 | I11: 0 | K11: 0 | M11: 0 | O11: 2822491
A12: Febrero | B12: 2822491 | D12: 0 | F12: 0 | I12: 0 | K12: 0 | M12: 0 | O12: 2822491
A13: Marzo | B13: 2822491 | D13: 0 | F13: 0 | I13: 0 | K13: 0 | M13: 0 | O13: 2822491
A14: Abril | B14: 2822491 | D14: 32889 | F14: 6474 | I14: 6540 | K14: 15243 | M14: 89 | O14: 2839982
A15: Mayo | B15: 2839982 | D15: 6236 | F15: 2098 | I15: 1285 | K15: 0 | M15: 34 | O15: 2846997
A16: Junio | B16: 2846997 | D16: 8384 | F16: 1939 | I16: 1403 | K16: 0 | M16: 54 | O16: 2855863
A17: Julio | B17: 2855863 | D17: 7615 | F17: 1684 | I17: 1459 | K17: 0 | M17: 46 | O17: 2863657
A18: Agosto | B18: 2863657 | D18: 4476 | F18: 768 | I18: 1953 | K18: 0 | M18: 27 | O18: 2866921
A19: Setiembre | B19: 2866921 | D19: 66 | F19: 22 | I19: 786 | K19: 0 | M19: 6 | O19: 2866217
A20: Octubre | B20: 2866217 | D20: 0 | F20: 0 | I20: 0 | K20: 0 | M20: 0 | O20: 2866217
A21: Noviembre | B21: 2866217 | D21: 0 | F21: 0 | I21: 0 | K21: 0 | M21: 0 | O21: 2866217
A22: Diciembre | B22: 2866217 | D22: 0 | F22: 0 | I22: 0 | K22: 0 | M22: 0 | O22: 2866217
A25: 1/ Incluye nuevos electores, inclusión condicional de nuevos electores y otras inclusiones.
A26: 2/ No se aplican exclusiones por caducidad durante el año anterior a una elección. (Ley Orgánica del TSE, Art. 94)
A28: Nota: El padrón estuvo cerrado por las elecciones hasta marzo inclusive, nuevamente se cerró en setiembre.
A29: Fuente: Sección Padrón Electoral del Tribunal Supremo de Elecciones.

Sheet 7
A1: CUADRO 7
A3: COSTA RICA: TOTAL DE PRODUCTOS Y SERVICIOS BRINDADOS, POR TIPO DE SERVICIO
A4: SEGÚN MES, AL 31 DE DICIEMBRE DE 2010
A6: Mes | B6: Total | C6: Productos y Sevicios
C7: Cédulas de identidad impresas | D7: Tarjetas identidad de menores impresas | E7: Certificaciones y constancias expedidas | F7: Asambleas de partidos políticos fiscalizadas | G7: Atención de consultas en materia electoral 1/ | H7: Movimientos y actualizaciones al Padrón Electoral
A9: Total | B9: =SUM(B11:B22) -> 4409854 | C9: =SUM(C11:C22) -> 677492 | D9: 173206 | E9: 2938204 | F9: 915 | G9: 27507 | H9: 592530
A11: Enero | B11: =SUM(C11:H11) -> 351202 | C11: 79452 | D11: 15241 | E11: 254957 | F11: 0 | G11: 1552 | H11: 0
A12: Febrero | B12: =SUM(C12:H12) -> 391020 | C12: 44612 | D12: 15598 | E12: 329940 | F12: 0 | G12: 870 | H12: 0
A13: Marzo | B13: 332571 | C13: 56605 | D13: 10173 | E13: 264976 | F13: 9 | G13: 808 | H13: 0
A14: Abril | B14: 675618 | C14: 54858 | D14: 11685 | E14: 245904 | F14: 30 | G14: 1051 | H14: 362090
A15: Mayo | B15: 354599 | C15: 55399 | D15: 11415 | E15: 229582 | F15: 37 | G15: 1020 | H15: 57146
A16: Junio | B16: 368227 | C16: 62340 | D16: 12818 | E16: 220476 | F16: 124 | G16: 1757 | H16: 70712
A17: Julio | B17: 381056 | C17: 59846 | D17: 17883 | E17: 233210 | F17: 593 | G17: 1996 | H17: 67528
A18: Agosto | B18: 358777 | C18: 61596 | D18: 14190 | E18: 246492 | F18: 105 | G18: 2654 | H18: 33740
A19: Setiembre | B19: 267791 | C19: 47127 | D19: 13250 | E19: 202633 | F19: 2 | G19: 3465 | H19: 1314
A20: Octubre | B20: 314675 | C20: 57956 | D20: 17812 | E20: 235104 | F20: 3 | G20: 3800 | H20: 0
A21: Noviembre | B21: 346889 | C21: 60695 | D21: 16397 | E21: 264994 | F21: 9 | G21: 4794 | H21: 0
A22: Diciembre | B22: 267429 | C22: 37006 | D22: 16744 | E22: 209936 | F22: 3 | G22: 3740 | H22: 0
A25: 1/ A Partidos Políticos, Municipalidades, Asamblea Legislativa y otros.
A27: Fuente: Oficinas del Tribunal Supremo de Elecciones.

Sheet 8
A1: CUADRO 8
A3: COSTA RICA: TOTAL DE CERTIFICACIONES SOLICITADAS VÍA
A4: INTERNET, POR TIPO DE SOLICITUD, SEGÚN MES
A5: AL 31 DE DICIEMBRE DE 2010
A7: Mes | B7: Total | C7: Tipo de solicitud
C8: Nacimiento | D8: Matrimonio | E8: Defunción | F8: No aparece matrimonio
A10: Total | B10: =SUM(C10:F10) -> 86830 | C10: =SUM(C12:C23) -> 44122 | D10: =SUM(D12:D23) -> 16314 | E10: =SUM(E12:E23) -> 5128 | F10: =SUM(F12:F23) -> 21266
A12: Enero | B12: =SUM(C12:F12) -> 8736 | C12: 4274 | D12: 1433 | E12: 399 | F12: 2630
A13: Febrero | B13: 10018 | C13: 5597 | D13: 1619 | E13: 550 | F13: 2252
A14: Marzo | B14: 9576 | C14: 4776 | D14: 1627 | E14: 472 | F14: 2701
A15: Abril | B15: 8866 | C15: 4721 | D15: 1530 | E15: 441 | F15: 2174
A16: Mayo | B16: 8604 | C16: 4358 | D16: 1644 | E16: 471 | F16: 2131
A17: Junio | B17: 5420 | C17: 2008 | D17: 1465 | E17: 460 | F17: 1487
A18: Julio | B18: 5385 | C18: 1914 | D18: 1386 | E18: 601 | F18: 1484
A19: Agosto | B19: 7823 | C19: 4278 | D19: 1493 | E19: 429 | F19: 1623
A20: Setiembre | B20: 7211 | C20: 3866 | D20: 1383 | E20: 445 | F20: 1517
A21: Octubre | B21: 5792 | C21: 3118 | D21: 1039 | E21: 384 | F21: 1251
A22: Noviembre | B22: 6329 | C22: 3304 | D22: 1282 | E22: 305 | F22: 1438
A23: Diciembre | B23: 3070 | C23: 1908 | D23: 413 | E23: 171 | F23: 578
A26: Fuente: Departamento Civil, Tribunal Supremo de Elecciones.

Sheet 9
A1: CUADRO 9
A3: COSTA RICA: TARJETAS DE IDENTIDAD DE MENORES IMPRESAS
A4: POR PROVINCIA, SEGÚN MES, AL 31 DEDICIEMBRE DE 2010
A6: Mes | B6: Total | C6: Provincia
C7: San José | D7: Alajuela | E7: Cartago | F7: Heredia | G7: Guanacaste | H7: Puntarenas | I7: Limón
A9: Total | B9: =SUM(C9:I9) -> 173206 | C9: =SUM(C11:C22) -> 65546 | D9: 30590 | E9: 18022 | F9: 13502 | G9: 12634 | H9: 12455 | I9: 20457
A11: Enero | B11: =SUM(C11:I11) -> 15241 | C11: 6838 | D11: 2520 | E11: 1120 | F11: 966 | G11: 1456 | H11: 664 | I11: 1677
A12: Febrero | B12: =SUM(C12:I12) -> 15598 | C12: 6658 | D12: 2935 | E12: 599 | F12: 1303 | G12: 850 | H12: 982 | I12: 2271
A13: Marzo | B13: 10173 | C13: 4112 | D13: 1536 | E13: 1280 | F13: 817 | G13: 875 | H13: 118 | I13: 1435
A14: Abril | B14: 11685 | C14: 4538 | D14: 1512 | E14: 1579 | F14: 858 | G14: 852 | H14: 752 | I14: 1594
A15: Mayo | B15: 11415 | C15: 4281 | D15: 1768 | E15: 1488 | F15: 969 | G15: 857 | H15: 613 | I15: 1439
A16: Junio | B16: 12818 | C16: 4956 | D16: 2332 | E16: 1494 | F16: 1031 | G16: 1006 | H16: 320 | I16: 1679
A17: Julio | B17: 17883 | C17: 7058 | D17: 3771 | E17: 1995 | F17: 1426 | G17: 1349 | H17: 372 | I17: 1912
A18: Agosto | B18: 14190 | C18: 4865 | D18: 2562 | E18: 1610 | F18: 1147 | G18: 873 | H18: 1763 | I18: 1370
A19: Setiembre | B19: 13250 | C19: 4617 | D19: 2393 | E19: 1458 | F19: 1049 | G19: 756 | H19: 1543 | I19: 1434
A20: Octubre | B20: 17812 | C20: 6814 | D20: 3189 | E20: 2020 | F20: 1504 | G20: 1190 | H20: 1222 | I20: 1873
A21: Noviembre | B21: 16397 | C21: 5556 | D21: 3038 | E21: 1679 | F21: 1289 | G21: 1248 | H21: 1748 | I21: 1839
A22: Diciembre | B22: 16744 | C22: 5253 | D22: 3034 | E22: 1700 | F22: 1143 | G22: 1322 | H22: 2358 | I22: 1934
A25: Fuente: Departamento Civil y Coordinación de Servicios Regionales del Tribunal Supremo de Elecciones.

Sheet 10
A1: CUADRO 10
A3: COSTA RICA: INSCRIPCIONES CIVILES POR MES, SEGÚN CLASE DE INSCRIPCIÓN
A4: AL 31 DE DICIEMBRE DE 2010
A6: Clase de inscripción 1/ | B6: Total | C6: Mes
C7: Enero | D7: Febrero | E7: Marzo | F7: Abril | G7: Mayo | H7: Junio | I7: Julio | J7: Agosto | K7: Setiembre | L7: Octubre | M7: Noviembre | N7: Diciembre
A9: Nacimientos | B9: 72701 | C9: 5741 | D9: 5829 | E9: 6606 | F9: 7753 | G9: 4579 | H9: 6273 | I9: 4312 | J9: 7939 | K9: 6413 | L9: 5976 | M9: 6721 | N9: 4559
A10: Matrimonios: | B10: 24049 | C10: 2038 | D10: 2259 | E10: 3040 | F10: 2670 | G10: 2250 | H10: 2236 | I10: 1470 | J10: 2111 | K10: 1753 | L10: 1286 | M10: 1674 | N10: 1262
A11: Católicos | B11: 6682 | C11: 561 | D11: 755 | E11: 932 | F11: 511 | G11: 612 | H11: 565 | I11: 322 | J11: 712 | K11: 716 | L11: 217 | M11: 463 | N11: 316
A12: Civiles | B12: 16799 | C12: 1454 | D12: 1484 | E12: 2020 | F12: 2118 | G12: 1603 | H12: 1624 | I12: 1113 | J12: 1338 | K12: 962 | L12: 1016 | M12: 1159 | N12: 908
A13: Extranjeros2/ | B13: 568 | C13: 23 | D13: 20 | E13: 88 | F13: 41 | G13: 35 | H13: 47 | I13: 35 | J13: 61 | K13: 75 | L13: 53 | M13: 52 | N13: 38
A14: Defunciones | B14: 19828 | C14: 2264 | D14: 1334 | E14: 1192 | F14: 2251 | G14: 1169 | H14: 1676 | I14: 1749 | J14: 2839 | K14: 1165 | L14: 1461 | M14: 1655 | N14: 1073
A15: Divorcios | B15: 11556 | C15: 934 | D15: 972 | E15: 649 | F15: 1628 | G15: 1130 | H15: 942 | I15: 709 | J15: 840 | K15: 747 | L15: 1469 | M15: 737 | N15: 799
A16: Separaciones Judiciales | B16: 62 | C16: 9 | D16: 8 | E16: 1 | F16: 3 | G16: 12 | H16: 11 | I16: 5 | J16: 4 | K16: 3 | L16: 4 | M16: 1 | N16: 1
A17: Reconocimientos | B17: 21223 | C17: 1545 | D17: 325 | E17: 2025 | F17: 1337 | G17: 4094 | H17: 985 | I17: 942 | J17: 3088 | K17: 1511 | L17: 1874 | M17: 2486 | N17: 1011
A18: Legitimaciones | B18: 80 | C18: 9 | D18: 13 | E18: 8 | F18: 1 | G18: 11 | H18: 9 | I18: 5 | J18: 0 | K18: 10 | L18: 6 | M18: 7 | N18: 1
A19: Adopciones | B19: 205 | C19: 9 | D19: 35 | E19: 10 | F19: 24 | G19: 11 | H19: 24 | I19: 13 | J19: 12 | K19: 12 | L19: 20 | M19: 31 | N19: 4
A20: Impugnación de paternidad | B20: 340 | C20: 13 | D20: 26 | E20: 26 | F20: 45 | G20: 27 | H20: 20 | I20: 52 | J20: 14 | K20: 21 | L20: 50 | M20: 18 | N20: 28
A21: Investigación de paternidad | B21: 724 | C21: 53 | D21: 50 | E21: 35 | F21: 129 | G21: 49 | H21: 72 | I21: 70 | J21: 72 | K21: 36 | L21: 76 | M21: 48 | N21: 34
A22: Opciones 3/ | B22: 558 | C22: 141 | D22: 59 | E22: 43 | F22: 42 | G22: 23 | H22: 53 | I22: 54 | J22: 60 | K22: 33 | L22: 15 | M22: 35 | N22: 0
A23: Naturalizaciones | B23: 3358 | C23: 129 | D23: 0 | E23: 278 | F23: 331 | G23: 299 | H23: 958 | I23: 124 | J23: 336 | K23: 19 | L23: 426 | M23: 454 | N23: 4
A26: 1/ Todos los datos se refieren a hechos inscritos en el mes respectivo, no así a los ocurridos.
A28: 2/ Matrimonios inscritos, pero realilzados en el extranjero.
A30: 3/ Trámite realizado en Actos Jurídicos.
A32: Fuente: Sección de Inscripciones, Oficina de Actos Jurídicos, Sección de Opciones y Naturalizaciones del Tribunal Supremo de Elecciones.

Sheet G3
A2: GRÁFICO 3 | K2: Nacimientos | L2: Defunciones
K3: 72701 | L3: 19828
A4: COSTA RICA: NACIMIENTOS Y DEFUNCIONES INSCRITAS | J4: ENE | K4: 5741 | L4: 2264
A5: POR MES, AL 31 DE DICIEMBRE DE 2010 | J5: FEB | K5: 5829 | L5: 1334
J6: MAR | K6: 6606 | L6: 1192
J7: ABR | K7: 7753 | L7: 2251
J8: MAY | K8: 4579 | L8: 1169
J9: JUN | K9: 6273 | L9: 1676
J10: JUL | K10: 4312 | L10: 1749
J11: AGO | K11: 7939 | L11: 2839
J12: SET | K12: 6413 | L12: 1165
J13: OCT | K13: 5976 | L13: 1461
J14: NOV | K14: 6721 | L14: 1655
J15: DIC | K15: 4559 | L15: 1073
A27: Fuente: Cuadro 10

Sheet G4 y G5
A2: GRÁFICO 4
A4: COSTA RICA: MATRIMONIOS INSCRITOS, SEGÚN CLASE DE INSCRIPCIÓN | K4: MATRIMONIOS INSCRITOS
A5: AL 31 DE DICIEMBRE DE 2010 | K5: Civiles | L5: 16799 | M5: 69.85321635
K6: Católicos | L6: 6682 | M6: 27.78493908
K7: Extranjeros | L7: 568 | M7: 2.361844567
K8: Total | L8: 24049
A30: Fuente: Cuadro 10
A33: GRÁFICO 5
A35: COSTA RICA: MATRIMONIOS Y DIVORCIOS INSCRITOS | L35: Matrimonios | M35: Divorcios
A36: POR MES, AL 31 DE DICIEMBRE DE 2010 | K36: ENE | L36: 2038 | M36: 934
K37: FEB | L37: 2259 | M37: 972
K38: MAR | L38: 3040 | M38: 649
K39: ABR | L39: 2670 | M39: 1628
K40: MAY | L40: 2250 | M40: 1130
K41: JUN | L41: 2236 | M41: 942
K42: JUL | L42: 1470 | M42: 709
K43: AGO | L43: 2111 | M43: 840
K44: SET | L44: 1753 | M44: 747
K45: OCT | L45: 1286 | M45: 1469
K46: NOV | L46: 1674 | M46: 737
K47: DIC | L47: 1262 | M47: 799
L48: 24049 | M48: 11556
A62: Fuente: Cuadro 10

Sheet 11
A1: CUADRO 11
A3: COSTA RICA: NACIMIENTOS INSCRITOS, POR PROVINCIA Y PARTIDO ESPECIAL
A4: SEGÚN MES, AL 31 DE DICIEMBRE DE 2010
A6: Mes | B6: Total | C6: San José | D6: Alajuela | E6: Cartago | F6: Heredia | G6: Guanacaste | H6: Puntarenas | I6: Limón | J6: Partido especial 1/
A8: Costa Rica | B8: 72701 | C8: 28419 | D8: 12848 | E8: 6590 | F8: 4401 | G8: 5823 | H8: 5684 | I8: 6774 | J8: 2162
A10: Enero | B10: 5741 | C10: 2768 | D10: 811 | E10: 401 | F10: 403 | G10: 396 | H10: 256 | I10: 600 | J10: 106
A11: Febrero | B11: 5829 | C11: 2128 | D11: 1170 | E11: 694 | F11: 283 | G11: 338 | H11: 697 | I11: 365 | J11: 154
A12: Marzo | B12: 6606 | C12: 2532 | D12: 1387 | E12: 537 | F12: 442 | G12: 574 | H12: 437 | I12: 549 | J12: 148
A13: Abril | B13: 7753 | C13: 2828 | D13: 1376 | E13: 790 | F13: 505 | G13: 738 | H13: 735 | I13: 629 | J13: 152
A14: Mayo | B14: 4579 | C14: 1864 | D14: 627 | E14: 379 | F14: 163 | G14: 343 | H14: 447 | I14: 432 | J14: 324
A15: Junio | B15: 6273 | C15: 2651 | D15: 1015 | E15: 496 | F15: 258 | G15: 465 | H15: 531 | I15: 515 | J15: 342
A16: Julio | B16: 4312 | C16: 1965 | D16: 612 | E16: 392 | F16: 245 | G16: 156 | H16: 368 | I16: 316 | J16: 258
A17: Agosto | B17: 7939 | C17: 2995 | D17: 1629 | E17: 635 | F17: 568 | G17: 711 | H17: 498 | I17: 783 | J17: 120
A18: Setiembre | B18: 6413 | C18: 2017 | D18: 1017 | E18: 735 | F18: 461 | G18: 613 | H18: 573 | I18: 864 | J18: 133
A19: Octubre | B19: 5976 | C19: 2222 | D19: 1087 | E19: 547 | F19: 396 | G19: 595 | H19: 387 | I19: 560 | J19: 182
A20: Noviembre | B20: 6721 | C20: 2692 | D20: 1311 | E20: 620 | F20: 416 | G20: 479 | H20: 361 | I20: 679 | J20: 163
A21: Diciembre | B21: 4559 | C21: 1757 | D21: 806 | E21: 364 | F21: 261 | G21: 415 | H21: 394 | I21: 482 | J21: 80
A24: 1/ Inscripción de nacimientos de costarricenses nacidos en el extranjero.
A26: Fuente: Sección de Inscripciones del Tribunal Supremo de Elecciones.

Sheet 12
A1: CUADRO 12
A3: COSTA RICA: DEFUNCIONES INSCRITAS, POR PROVINCIA, SEGÚN MES
A4: AL 31 DE DICIEMBRE DE 2010
A6: Mes | B6: Total | C6: San José | D6: Alajuela | E6: Cartago | F6: Heredia | G6: Guanacaste | H6: Puntarenas | I6: Limón
A8: Costa Rica | B8: 19828 | C8: 8957 | D8: 3293 | E8: 1792 | F8: 1386 | G8: 1496 | H8: 1639 | I8: 1265
A10: Enero | B10: 2264 | C10: 1013 | D10: 348 | E10: 212 | F10: 153 | G10: 203 | H10: 150 | I10: 185
A11: Febrero | B11: 1334 | C11: 704 | D11: 191 | E11: 92 | F11: 73 | G11: 79 | H11: 107 | I11: 88
A12: Marzo | B12: 1192 | C12: 424 | D12: 223 | E12: 183 | F12: 97 | G12: 88 | H12: 116 | I12: 61
A13: Abril | B13: 2251 | C13: 991 | D13: 453 | E13: 136 | F13: 137 | G13: 188 | H13: 176 | I13: 170
A14: Mayo | B14: 1169 | C14: 523 | D14: 192 | E14: 127 | F14: 71 | G14: 114 | H14: 115 | I14: 27
A15: Junio | B15: 1676 | C15: 766 | D15: 267 | E15: 143 | F15: 98 | G15: 126 | H15: 140 | I15: 136
A16: Julio | B16: 1749 | C16: 868 | D16: 257 | E16: 200 | F16: 92 | G16: 91 | H16: 171 | I16: 70
A17: Agosto | B17: 2839 | C17: 1279 | D17: 471 | E17: 246 | F17: 208 | G17: 185 | H17: 264 | I17: 186
A18: Setiembre | B18: 1165 | C18: 532 | D18: 220 | E18: 100 | F18: 116 | G18: 79 | H18: 57 | I18: 61
A19: Octubre | B19: 1461 | C19: 705 | D19: 166 | E19: 102 | F19: 143 | G19: 120 | H19: 122 | I19: 103
A20: Noviembre | B20: 1655 | C20: 673 | D20: 327 | E20: 165 | F20: 128 | G20: 133 | H20: 125 | I20: 104
A21: Diciembre | B21: 1073 | C21: 479 | D21: 178 | E21: 86 | F21: 70 | G21: 90 | H21: 96 | I21: 74
A24: Fuente: Sección de Inscripciones del Tribunal Supremo de Elecciones.

Sheet 13
A1: CUADRO 13
A3: COSTA RICA: SOLICITUDES DE CÉDULA RECIBIDAS, POR CLASE DE SOLICITUD
A4: SEGÚN MES, AL 31 DE DICIEMBRE DE 2010
A5: (Absoluto y Porcentaje)
A7: Mes | B7: Clase de solicitud
B8: Absoluto | F8: Porcentaje
B9: Total | C9: Primera vez | D9: Duplicado | E9: Traslado | F9: Total | G9: Primera vez | H9: Duplicado | I9: Traslado
A11: TOTAL | B11: 664334 | C11: 80265 | D11: 580886 | E11: 3183 | F11: 100 | G11: 12.08202501 | H11: 87.43884853 | I11: 0.4791264635
A13: Enero | B13: 60078 | C13: 4704 | D13: 55355 | E13: 19 | F13: 100 | G13: 7.829821232 | H13: 92.13855321 | I13: 0.03162555345
A14: Febrero | B14: 54766 | C14: 6480 | D14: 48259 | E14: 27 | F14: 100 | G14: 11.83215864 | H14: 88.1185407 | I14: 0.04930066099
A15: Marzo | B15: 54488 | C15: 6677 | D15: 47756 | E15: 55 | F15: 100 | G15: 12.25407429 | H15: 87.64498605 | I15: 0.1009396564
A16: Abril | B16: 57643 | C16: 7611 | D16: 49995 | E16: 37 | F16: 100 | G16: 13.20368475 | H16: 86.73212706 | I16: 0.06418819284
A17: Mayo | B17: 56978 | C17: 6596 | D17: 50181 | E17: 201 | F17: 100 | G17: 11.57639791 | H17: 88.07083436 | I17: 0.3527677349
A18: Junio | B18: 53690 | C18: 6974 | D18: 46605 | E18: 111 | F18: 100 | G18: 12.9893835 | H18: 86.80387409 | I18: 0.2067424101
A19: Julio | B19: 71646 | C19: 9024 | D19: 61269 | E19: 1353 | F19: 100 | G19: 12.59526003 | H19: 85.51628842 | I19: 1.888451553
A20: Agosto | B20: 56950 | C20: 6992 | D20: 48902 | E20: 1056 | F20: 100 | G20: 12.27743635 | H20: 85.86830553 | I20: 1.854258121
A21: Setiembre | B21: 50898 | C21: 6274 | D21: 44435 | E21: 189 | F21: 100 | G21: 12.32661401 | H21: 87.30205509 | I21: 0.3713308971
A22: Octubre | B22: 52311 | C22: 6692 | D22: 45526 | E22: 93 | F22: 100 | G22: 12.79272046 | H22: 87.02949666 | I22: 0.1777828755
A23: Noviembre | B23: 57261 | C23: 6210 | D23: 51035 | E23: 16 | F23: 100 | G23: 10.8450778 | H23: 89.12697997 | I23: 0.02794222944
A24: Diciembre | B24: 37625 | C24: 6031 | D24: 31568 | E24: 26 | F24: 100 | G24: 16.02923588 | H24: 83.90166113 | I24: 0.06910299003
A27: Fuente: Sección Solicitudes Cedulares y Coordinación de Servicios Regionales del Tribunal Supremo de Elecciones.

Sheet G6
A2: GRÁFICO 6
A4: COSTA RICA: PORCENTAJE DE SOLICITUDES DE CÉDULA RECIBIDAS | J4: SOLICITUDES CEDULARES RECIBIDAS
A5: POR CLASE DE SOLICITUD, AL 31 DE DICIEMBRE DE 2010 | J5: TOTAL | K5: 664334
J6: Duplicado | K6: 580886 | L6: 87.43884853
J7: Primera vez | K7: 80265 | L7: 12.08202501
J8: Traslado | K8: 3183 | L8: 0.4791264635
A31: Fuente: Cuadro 13

Sheet 14
A1: CUADRO 14
A3: COSTA RICA: SOLICITUDES DE CÉDULA RECIBIDAS
A4: POR FUENTE DE INGRESO, SEGÚN MES
A5: AL 31 DE DICIEMBRE DE 2010
A7: Mes | B7: Fuente de ingreso
B8: Total | C8: Oficina central | D8: Oficinas regionales 1/ | E8: Consulados | F8: Cedulación a domicilio | G8: Cedulación ambulante
A10: TOTAL | B10: 664334 | C10: 236247 | D10: 399942 | E10: 5489 | F10: 4032 | G10: 18624
A12: Enero | B12: 60078 | C12: 21742 | D12: 37631 | E12: 316 | F12: 389 | G12: 0
A13: Febrero | B13: 54766 | C13: 20600 | D13: 33551 | E13: 159 | F13: 158 | G13: 298
A14: Marzo | B14: 54488 | C14: 19397 | D14: 32048 | E14: 479 | F14: 313 | G14: 2251
A15: Abril | B15: 57643 | C15: 20016 | D15: 34250 | E15: 483 | F15: 382 | G15: 2512
A16: Mayo | B16: 56978 | C16: 19906 | D16: 33494 | E16: 296 | F16: 424 | G16: 2858
A17: Junio | B17: 53690 | C17: 19635 | D17: 32920 | E17: 578 | F17: 338 | G17: 219
A18: Julio | B18: 71646 | C18: 21779 | D18: 38792 | E18: 303 | F18: 515 | G18: 10257
A19: Agosto | B19: 56950 | C19: 20657 | D19: 35141 | E19: 878 | F19: 274 | G19: 0
A20: Setiembre | B20: 50898 | C20: 18338 | D20: 31894 | E20: 399 | F20: 267 | G20: 0
A21: Octubre | B21: 52311 | C21: 19341 | D21: 31984 | E21: 736 | F21: 250 | G21: 0
A22: Noviembre | B22: 57261 | C22: 21108 | D22: 35167 | E22: 347 | F22: 617 | G22: 22
A23: Diciembre | B23: 37625 | C23: 13728 | D23: 23070 | E23: 515 | F23: 105 | G23: 207
A26: 1/ El Tribunal Supremo de Elecciones cuenta con 32 Oficinas Regionales.
A28: Fuente: Sección Solicitudes Cedulares y Coordinación de Servicios Regionales del Tribunal Supremo de Elecciones.

Sheet G7
A2: GRÁFICO 7
A4: COSTA RICA: PORCENTAJE DE SOLICITUDES DE CÉDULA RECIBIDAS | J4: SOLICITUDES CEDULARES RECIBIDAS
A5: POR FUENTE DE INGRESO, AL 31 DE DICIEMBRE DE 2010 | J5: TOTAL | K5: 664334
J6: Oficinas Regionales | K6: 399942 | L6: 60.20194661
J7: Oficina Central | K7: 236247 | L7: 35.56147962
J8: Cedulación Ambulante | K8: 18624 | L8: 2.803409129
J9: Consulados y domicilio | K9: 9521 | L9: 1.433164643
A30: Fuente: Cuadro 14

Sheet 15
A1: CUADRO 15
A3: COSTA RICA: SOLICITUDES DE CÉDULA RECIBIDAS, POR CLASE DE SOLICITUD
A4: SEGÚN PROVINCIA, AL 31 DE DICIEMBRE DE 2010
A5: (Absoluto y Porcentaje)
A7: Provincia | B7: Clase de solicitud
B8: Absoluto | F8: Porcentaje
B9: Total | C9: Primera vez | D9: Duplicado | E9: Traslado | F9: Total | G9: Primera vez | H9: Duplicado | I9: Traslado
A11: Costa Rica | B11: 664334 | C11: 80265 | D11: 580886 | E11: 3183 | F11: 100 | G11: 100 | H11: 100 | I11: 100
A13: San José | B13: 281345 | C13: 30666 | D13: 249021 | E13: 1658 | F13: 42.34993241 | G13: 38.20594281 | H13: 42.86916882 | I13: 52.089224
A14: Alajuela | B14: 106605 | C14: 14683 | D14: 91357 | E14: 565 | F14: 16.0468981 | G14: 18.29315393 | H14: 15.72718227 | I14: 17.7505498
A15: Cartago | B15: 54048 | C15: 7582 | D15: 46339 | E15: 127 | F15: 8.135666698 | G15: 9.446209431 | H15: 7.97729675 | I15: 3.989946591
A16: Heredia | B16: 50064 | C16: 6347 | D16: 43502 | E16: 215 | F16: 7.535968353 | G16: 7.90755622 | H16: 7.48890488 | I16: 6.754633993
A17: Guanacaste | B17: 44682 | C17: 6065 | D17: 38485 | E17: 132 | F17: 6.725833692 | G17: 7.556220021 | H17: 6.625224226 | I17: 4.147031103
A18: Puntarenas | B18: 67026 | C18: 7596 | D18: 58989 | E18: 441 | F18: 10.08920212 | G18: 9.463651654 | H18: 10.1550046 | I18: 13.85485391
A19: Limón | B19: 60564 | C19: 7326 | D19: 53193 | E19: 45 | F19: 9.116498629 | G19: 9.127265932 | H19: 9.157218456 | I19: 1.413760603
A22: Fuente: Sección Solicitudes Cedulares y Coordinación de Servicios Regionales del Tribunal Supremo de Elecciones.

Sheet G8
A2: GRÁFICO 8 | L2: PV | M2: DUP | N2: TRASL
K3: San José | L3: 30666 | M3: 249021 | N3: 1658
A4: COSTA RICA: SOLICITUDES DE CÉDULA RECIBIDAS, POR CLASE DE SOLICITUD | K4: Alajuela | L4: 14683 | M4: 91357 | N4: 565
A5: SEGÚN PROVINCIA, AL 31 DE DICIEMBRE DE 2010 | K5: Puntarenas | L5: 7596 | M5: 58989 | N5: 441
K6: Limón | L6: 7326 | M6: 53193 | N6: 45
K7: Cartago | L7: 7582 | M7: 46339 | N7: 127
K8: Heredia | L8: 6347 | M8: 43502 | N8: 215
K9: Guanacaste | L9: 6065 | M9: 38485 | N9: 132
K10: Total | L10: 80265 | M10: 580886 | N10: 3183 | O10: 664334
L12: Duplicado | M12: Primera vez | N12: Traslado
K13: Guanacaste | L13: 38.485 | M13: 6.065 | N13: 0.132
K14: Heredia | L14: 43.502 | M14: 6.347 | N14: 0.215
K15: Cartago | L15: 46.339 | M15: 7.582 | N15: 0.127
K16: Limón | L16: 53.193 | M16: 7.326 | N16: 0.045
K17: Puntarenas | L17: 58.989 | M17: 7.596 | N17: 0.441
K18: Alajuela | L18: 91.357 | M18: 14.683 | N18: 0.565
K19: San José | L19: 249.021 | M19: 30.666 | N19: 1.658
K20: Total | L20: 580.886 | M20: 80.265 | N20: 3.183
A30: Fuente: Cuadro 15

Sheet 16
A1: CUADRO 16
A3: COSTA RICA: CANTIDAD DE RESOLUCIONES, POR TIPO DE RESOLUCIÓN, SEGÚN MES
A4: AL 31 DE DICIEMBRE DE 2010
A6: Mes | B6: Total | C6: Tipo de resolución
C7: Electorales | D7: Inscripciones | E7: Municipales | F7: Naturalizaciones | G7: Ocursos y otros | H7: Procedimientos
A9: Total | B9: 8079 | C9: 299 | D9: 645 | E9: 153 | F9: 6528 | G9: 35 | H9: 419
A11: Enero | B11: 586 | C11: 35 | D11: 50 | E11: 3 | F11: 480 | G11: 0 | H11: 18
A12: Febrero | B12: 729 | C12: 31 | D12: 50 | E12: 6 | F12: 615 | G12: 3 | H12: 24
A13: Marzo | B13: 833 | C13: 23 | D13: 86 | E13: 4 | F13: 679 | G13: 13 | H13: 28
A14: Abril | B14: 832 | C14: 19 | D14: 8 | E14: 9 | F14: 749 | G14: 2 | H14: 45
A15: Mayo | B15: 679 | C15: 10 | D15: 146 | E15: 47 | F15: 440 | G15: 5 | H15: 31
A16: Junio | B16: 716 | C16: 21 | D16: 25 | E16: 29 | F16: 599 | G16: 1 | H16: 41
A17: Julio | B17: 474 | C17: 24 | D17: 78 | E17: 12 | F17: 307 | G17: 1 | H17: 52
A18: Agosto | B18: 671 | C18: 37 | D18: 67 | E18: 5 | F18: 543 | G18: 1 | H18: 18
A19: Setiembre | B19: 594 | C19: 35 | D19: 74 | E19: 23 | F19: 438 | G19: 3 | H19: 21
A20: Octubre | B20: 406 | C20: 23 | D20: 14 | E20: 2 | F20: 301 | G20: 5 | H20: 61
A21: Noviembre | B21: 601 | C21: 14 | D21: 7 | E21: 10 | F21: 536 | G21: 1 | H21: 33
A22: Diciembre | B22: 958 | C22: 27 | D22: 40 | E22: 3 | F22: 841 | G22: 0 | H22: 47
A25: Fuente: Secretaría del Tribunal Supremo de Elecciones.

Sheet 17
A1: CUADRO 17
A3: COSTA RICA: CANTIDAD DE RESOLUCIONES ELECTORALES
A4: POR ACCIÓN TRAMITADA, SEGÚN MES
A5: AL 31 DE DICIEMBRE DE 2010
A7: Mes | B7: Acción Tramitada
B8: Total | C8: Amparo Electoral | D8: Hermenéutica Electoral | E8: Apelación electoral | F8: Denuncia Electoral | G8: Denuncia beligerancia Política | H8: Demanda de Nulidad | I8: Liquidación gastos partidos políticos | J8: Otras
A10: Total | B10: 299 | C10: 91 | D10: 58 | E10: 42 | F10: 41 | G10: 20 | H10: 15 | I10: 11 | J10: 21
A12: Enero | B12: 34 | C12: 12 | D12: 7 | E12: 4 | F12: 1 | G12: 5 | H12: 0 | I12: 0 | J12: 5
A13: Febrero | B13: 30 | C13: 3 | D13: 7 | E13: 6 | F13: 4 | G13: 5 | H13: 2 | I13: 0 | J13: 3
A14: Marzo | B14: 24 | C14: 6 | D14: 3 | E14: 3 | F14: 4 | G14: 4 | H14: 1 | I14: 1 | J14: 2
A15: Abril | B15: 18 | C15: 4 | D15: 5 | E15: 2 | F15: 6 | G15: 1 | H15: 0 | I15: 0 | J15: 0
A16: Mayo | B16: 10 | C16: 3 | D16: 2 | E16: 0 | F16: 5 | G16: 0 | H16: 0 | I16: 0 | J16: 0
A17: Junio | B17: 22 | C17: 6 | D17: 9 | E17: 0 | F17: 5 | G17: 2 | H17: 0 | I17: 0 | J17: 0
A18: Julio | B18: 24 | C18: 15 | D18: 8 | E18: 0 | F18: 1 | G18: 0 | H18: 0 | I18: 0 | J18: 0
A19: Agosto | B19: 38 | C19: 22 | D19: 5 | E19: 2 | F19: 1 | G19: 1 | H19: 0 | I19: 0 | J19: 7
A20: Setiembre | B20: 35 | C20: 14 | D20: 3 | E20: 11 | F20: 3 | G20: 1 | H20: 0 | I20: 0 | J20: 3
A21: Octubre | B21: 23 | C21: 2 | D21: 3 | E21: 9 | F21: 6 | G21: 1 | H21: 0 | I21: 1 | J21: 1
A22: Noviembre | B22: 14 | C22: 1 | D22: 4 | E22: 2 | F22: 2 | G22: 0 | H22: 0 | I22: 5 | J22: 0
A23: Diciembre | B23: 27 | C23: 3 | D23: 2 | E23: 3 | F23: 3 | G23: 0 | H23: 12 | I23: 4 | J23: 0
A26: Fuente: Secretaría del Tribunal Supremo de Elecciones.

Sheet 18
A1: CUADRO 18
A3: COSTA RICA: CANTIDAD DE RESOLUCIONES MUNICIPALES
A4: POR RESULTADO DE LA GESTIÓN, SEGÚN MES
A5: AL 31 DE DICIEMBRE DE 2010
A7: Mes | B7: Resultado de la Gestión
B8: Total | C8: Cancelación de credenciales | D8: Archivo de Expediente | E8: Sin Lugar | F8: Suspensión sin goce de salario | G8: Rechazo de plano y archivo de exp. | H8: Rechazo de plano | I8: Otras
A10: Total | B10: 153 | C10: 100 | D10: 29 | E10: 14 | F10: 3 | G10: 3 | H10: 2 | I10: 2
A12: Enero | B12: 3 | C12: 2 | D12: 0 | E12: 1 | F12: 0 | G12: 0 | H12: 0 | I12: 0
A13: Febrero | B13: 6 | C13: 2 | D13: 0 | E13: 2 | F13: 1 | G13: 0 | H13: 1 | I13: 0
A14: Marzo | B14: 4 | C14: 3 | D14: 0 | E14: 1 | F14: 0 | G14: 0 | H14: 0 | I14: 0
A15: Abril | B15: 9 | C15: 6 | D15: 0 | E15: 2 | F15: 1 | G15: 0 | H15: 0 | I15: 0
A16: Mayo | B16: 47 | C16: 26 | D16: 19 | E16: 1 | F16: 0 | G16: 0 | H16: 1 | I16: 0
A17: Junio | B17: 29 | C17: 23 | D17: 6 | E17: 0 | F17: 0 | G17: 0 | H17: 0 | I17: 0
A18: Julio | B18: 12 | C18: 10 | D18: 2 | E18: 0 | F18: 0 | G18: 0 | H18: 0 | I18: 0
A19: Agosto | B19: 5 | C19: 4 | D19: 0 | E19: 0 | F19: 0 | G19: 0 | H19: 0 | I19: 1
A20: Setiembre | B20: 23 | C20: 16 | D20: 1 | E20: 4 | F20: 1 | G20: 1 | H20: 0 | I20: 0
A21: Octubre | B21: 2 | C21: 0 | D21: 0 | E21: 1 | F21: 0 | G21: 0 | H21: 0 | I21: 1
A22: Noviembre | B22: 10 | C22: 5 | D22: 1 | E22: 2 | F22: 0 | G22: 2 | H22: 0 | I22: 0
A23: Diciembre | B23: 3 | C23: 3 | D23: 0 | E23: 0 | F23: 0 | G23: 0 | H23: 0 | I23: 0
A26: Fuente: Secretaría del Tribunal Supremo de Elecciones.

Sheet 19
A1: CUADRO 19
A3: COSTA RICA: TRÁMITES RELACIONADOS CON EL INGRESO DE SOLICITUDES DE
A4: DETERMINACIÓN DE PATERNIDAD1/, POR TIPO, SEGÚN MES
A5: AL 31 DE DICIEMBRE DE 2010
A7: Mes | B7: Ingreso de solicitudes de determinación de paternidad
B8: Total | D8: Paternidad de oficio 2/ | F8: Declaración voluntaria 3/ | H8: Casos enviados a notificar 4/ | J8: Solicitudes prueba de ADN 5/ | L8: Devueltas por el correo 6/ | N8: Información incompleta 7/
A10: Enero | B10: 38963 | D10: 204 | F10: 16071 | H10: 2920 | J10: 12690 | L10: 3521 | N10: 3557
A11: Febrero | B11: 39326 | D11: 218 | F11: 16155 | H11: 3004 | J11: 12852 | L11: 3526 | N11: 3571
A12: Marzo | B12: 39906 | D12: 218 | F12: 16227 | H12: 3192 | J12: 13122 | L12: 3550 | N12: 3597
A13: Abril | B13: 40164 | D13: 243 | F13: 16251 | H13: 3152 | J13: 13354 | L13: 3566 | N13: 3598
A14: Mayo | B14: 40651 | D14: 244 | F14: 16384 | H14: 3224 | J14: 13626 | L14: 3585 | N14: 3588
A15: Junio | B15: 40942 | D15: 244 | F15: 16523 | H15: 3041 | J15: 14032 | L15: 3569 | N15: 3533
A16: Julio | B16: 41514 | D16: 275 | F16: 16583 | H16: 3304 | J16: 14245 | L16: 3536 | N16: 3571
A17: Agosto | B17: 41952 | D17: 284 | F17: 16667 | H17: 3390 | J17: 14512 | L17: 3588 | N17: 3511
A18: Setiembre | B18: 42474 | D18: 284 | F18: 16749 | H18: 3359 | J18: 14798 | L18: 3701 | N18: 3583
A19: Octubre | B19: 42868 | D19: 284 | F19: 16836 | H19: 3355 | J19: 15059 | L19: 3738 | N19: 3596
A20: Noviembre | B20: 43213 | D20: 302 | F20: 16924 | H20: 3291 | J20: 15289 | L20: 3818 | N20: 3589
A21: Diciembre | B21: 43470 | D21: 316 | F21: 16979 | H21: 3269 | J21: 15467 | L21: 3858 | N21: 3581
A24: 1/ Datos acumulados desde que se promulgó la Ley 8101 DE Paternidad Responsable, en abril de 2001.
A26: 2/ Presuntos padres notificados que no se presentan en el término de 10 días y como consecuencia se aplica la paternidad
A27: por presunción.
A29: 3/ Padres que se presentan a firmar, aceptando la paternidad.
A31: 4/ Expedientes ingresados que aún no han sido notificados.
A33: 5/ Casos enviados al laboratorio para realizar la prueba de ADN.
A35: 6/ Citatorios enviados al padre que han sido devueltos por el correo por dirección inexacta.
A37: 7/ Casos de solicitudes en los que no se puede enviar citatorio al padre por no tener nombre y apellidos o dirección inexacta.
A39: Fuente: Sección de Inscripciones del Tribunal Supremo de Elecciones.

Sheet 20
A1: CUADRO 20
A3: COSTA RICA: TRÁMITES DE SOLICITUD DE PRUEBAS DE ADN 1/ POR TIPO DE RESULTADO
A4: DE LA GESTIÓN, SEGÚN MES, AL 31 DE DICIEMBRE DE 2010
A6: Mes | B6: Total de trámites | D6: Resultado de la gestión
D7: Resultado | K7: Pendiente de realizar prueba | T7: Cita pendiente de asignar | V7: Resultados pendientes de entrega
D8: Total | F8: Positivo | H8: Negativo | K8: Total | M8: Padre no se presentó | O8: Madre no se presentó | Q8: Ninguno se presentó
A10: Enero | B10: 12690 | D10: 8712 | F10: 6951 | H10: 1761 | K10: 3031 | M10: 1208 | O10: 934 | Q10: 889 | T10: 33 | V10: 914
A11: Febrero | B11: 12852 | D11: 8833 | F11: 7043 | H11: 1790 | K11: 3095 | M11: 1234 | O11: 952 | Q11: 909 | T11: 33 | V11: 891
A12: Marzo | B12: 13122 | D12: 9006 | F12: 7176 | H12: 1830 | K12: 3143 | M12: 1262 | O12: 953 | Q12: 928 | T12: 142 | V12: 831
A13: Abril | B13: 13354 | D13: 9145 | F13: 7274 | H13: 1871 | K13: 3215 | M13: 1282 | O13: 979 | Q13: 954 | T13: 55 | V13: 939
A14: Mayo | B14: 13626 | D14: 9370 | F14: 7446 | H14: 1924 | K14: 3273 | M14: 1311 | O14: 992 | Q14: 970 | T14: 56 | V14: 927
A15: Junio | B15: 14032 | D15: 9641 | F15: 7648 | H15: 1993 | K15: 3339 | M15: 1326 | O15: 1014 | Q15: 999 | T15: 194 | V15: 858
A16: Julio | B16: 14245 | D16: 9980 | F16: 7921 | H16: 2059 | K16: 3323 | M16: 1302 | O16: 1010 | Q16: 1011 | T16: 172 | V16: 770
A17: Agosto | B17: 14512 | D17: 10203 | F17: 8098 | H17: 2105 | K17: 3359 | M17: 1311 | O17: 1023 | Q17: 1025 | T17: 135 | V17: 815
A18: Setiembre | B18: 14798 | D18: 10351 | F18: 8219 | H18: 2132 | K18: 3382 | M18: 1318 | O18: 1032 | Q18: 1032 | T18: 219 | V18: 846
A19: Octubre | B19: 15059 | D19: 10566 | F19: 8383 | H19: 2183 | K19: 3450 | M19: 1338 | O19: 1065 | Q19: 1047 | T19: 160 | V19: 883
A20: Noviembre | B20: 15289 | D20: 10704 | F20: 8491 | H20: 2213 | K20: 3572 | M20: 1380 | O20: 1096 | Q20: 1096 | T20: 169 | V20: 844
A21: Diciembre | B21: 15467 | D21: 10906 | F21: 8656 | H21: 2250 | K21: 3604 | M21: 1391 | O21: 1113 | Q21: 1100 | T21: 134 | V21: 823
A24: 1/ Casos registrados desde que se promulgó la ley en abril de 2001.
A26: Fuente: Sección de Inscripciones del Tribunal Supremo de Elecciones.

Sheet 21
A1: CUADRO 21
A3: COSTA RICA: RESULTADO DE PRUEBAS DE ADN REALIZADAS 1/
A4: SEGÚN MES, AL 31 DE DICIEMBRE DE 2010
A6: Mes | B6: Total | D6: Absoluto | I6: Porcentaje
D7: Positivo | F7: Negativo | I7: Positivo | K7: Negativo
A9: Enero | B9: 8712 | D9: 6951 | F9: 1761 | I9: 79.78650138 | K9: 20.21349862
A10: Febrero | B10: 8833 | D10: 7043 | F10: 1790 | I10: 79.73508434 | K10: 20.26491566
A11: Marzo | B11: 9006 | D11: 7176 | F11: 1830 | I11: 79.68021319 | K11: 20.31978681
A12: Abril | B12: 9145 | D12: 7274 | F12: 1871 | I12: 79.54073264 | K12: 20.45926736
A13: Mayo | B13: 9370 | D13: 7446 | F13: 1924 | I13: 79.46638207 | K13: 20.53361793
A14: Junio | B14: 9641 | D14: 7648 | F14: 1993 | I14: 79.32787055 | K14: 20.67212945
A15: Julio | B15: 9980 | D15: 7921 | F15: 2059 | I15: 79.36873747 | K15: 20.63126253
A16: Agosto | B16: 10203 | D16: 8098 | F16: 2105 | I16: 79.36881309 | K16: 20.63118691
A17: Setiembre | B17: 10351 | D17: 8219 | F17: 2132 | I17: 79.40295624 | K17: 20.59704376
A18: Octubre | B18: 10566 | D18: 8383 | F18: 2183 | I18: 79.3393905 | K18: 20.6606095
A19: Noviembre | B19: 10704 | D19: 8491 | F19: 2213 | I19: 79.3254858 | K19: 20.6745142
A20: Diciembre | B20: 10906 | D20: 8656 | F20: 2250 | I20: 79.36915459 | K20: 20.63084541
A23: 1/ Casos registrados desde que se promulgó la ley en abril de 2001.
A25: Fuente: Sección de Inscripciones del Tribunal Supremo de Elecciones.

Sheet IL ANUAL CIVIL (hidden)
A1: PARA INFORME DE LABORES ANUAL DEL TSE
A2: ESTADISTICAS CIVILES
A4: Cuadro Nº 7: ESTADÍSTICAS CIVILES 2010
T5: 1 | V5: 2 | X5: 3 | Z5: 4
A6: INDICADORES | B6: TOTAL | D6: ENERO | F6: FEBRERO | H6: MARZO | J6: ABRIL | L6: MAYO | N6: JUNIO | P6: JULIO | R6: AGOSTO | T6: SETIEMBRE | V6: OCTUBRE | X6: NOVIEMBRE | Z6: DICIEMBRE
A8: CERTIFICACIONES Y CONSTANCIAS EXPEDIDAS | B8: =#REF! ->  | D8: =#REF! ->  | F8: =#REF! ->  | H8: =#REF! ->  | J8: =#REF! ->  | L8: =#REF! ->  | N8: =#REF! ->  | P8: =#REF! ->  | R8: =#REF! ->  | T8: =#REF! ->  | V8: =#REF! ->  | X8: =#REF! ->  | Z8: =#REF! -> 
A9: OFICINAS CENTRALES | B9: =#REF! ->  | D9: =#REF! ->  | F9: =#REF! ->  | H9: =#REF! ->  | J9: =#REF! ->  | L9: =#REF! ->  | N9: =#REF! ->  | P9: =#REF! ->  | R9: =#REF! ->  | T9: =#REF! ->  | V9: =#REF! ->  | X9: =#REF! ->  | Z9: =#REF! -> 
A10: Certificaciones | B10: =#REF! ->  | D10: =#REF! ->  | F10: =#REF! ->  | H10: =#REF! ->  | J10: =#REF! ->  | L10: =#REF! ->  | N10: =#REF! ->  | P10: =#REF! ->  | R10: =#REF! ->  | T10: =#REF! ->  | V10: =#REF! ->  | X10: =#REF! ->  | Z10: =#REF! -> 
A11: Constancias | B11: =#REF! ->  | D11: =#REF! ->  | F11: =#REF! ->  | H11: =#REF! ->  | J11: =#REF! ->  | L11: =#REF! ->  | N11: =#REF! ->  | P11: =#REF! ->  | R11: =#REF! ->  | T11: =#REF! ->  | V11: =#REF! ->  | X11: =#REF! ->  | Z11: =#REF! -> 
A12: OFICINAS REGIONALES | B12: =#REF! ->  | D12: =#REF! ->  | F12: =#REF! ->  | H12: =#REF! ->  | J12: =#REF! ->  | L12: =#REF! ->  | N12: =#REF! ->  | P12: =#REF! ->  | R12: =#REF! ->  | T12: =#REF! ->  | V12: =#REF! ->  | X12: =#REF! ->  | Z12: =#REF! -> 
A13: Certificaciones | B13: =#REF! ->  | D13: =#REF! ->  | F13: =#REF! ->  | H13: =#REF! ->  | J13: =#REF! ->  | L13: =#REF! ->  | N13: =#REF! ->  | P13: =#REF! ->  | R13: =#REF! ->  | T13: =#REF! ->  | V13: =#REF! ->  | X13: =#REF! ->  | Z13: =#REF! -> 
A14: Constancias | B14: =#REF! ->  | D14: =#REF! ->  | F14: =#REF! ->  | H14: =#REF! ->  | J14: =#REF! ->  | L14: =#REF! ->  | N14: =#REF! ->  | P14: =#REF! ->  | R14: =#REF! ->  | T14: =#REF! ->  | V14: =#REF! ->  | X14: =#REF! ->  | Z14: =#REF! -> 
A16: TIM EXPEDIDAS | B16: =#REF! ->  | D16: =#REF! ->  | F16: =#REF! ->  | H16: =#REF! ->  | J16: =#REF! ->  | L16: =#REF! ->  | N16: =#REF! ->  | P16: =#REF! ->  | R16: =#REF! ->  | T16: =#REF! ->  | V16: =#REF! ->  | X16: =#REF! ->  | Z16: =#REF! -> 
A17: OFICIALÍA MAYOR CIVIL | B17: =#REF! ->  | D17: =#REF! ->  | F17: =#REF! ->  | H17: =#REF! ->  | J17: =#REF! ->  | L17: =#REF! ->  | N17: =#REF! ->  | P17: =#REF! ->  | R17: =#REF! ->  | T17: =#REF! ->  | V17: =#REF! ->  | X17: =#REF! ->  | Z17: =#REF! -> 
A18: Emitidas por primera vez | B18: =#REF! ->  | D18: =#REF! ->  | F18: =#REF! ->  | H18: =#REF! ->  | J18: =#REF! ->  | L18: =#REF! ->  | N18: =#REF! ->  | P18: =#REF! ->  | R18: =#REF! ->  | T18: =#REF! ->  | V18: =#REF! ->  | X18: =#REF! ->  | Z18: =#REF! -> 
A19: Duplicadas | B19: =#REF! ->  | D19: =#REF! ->  | F19: =#REF! ->  | H19: =#REF! ->  | J19: =#REF! ->  | L19: =#REF! ->  | N19: =#REF! ->  | P19: =#REF! ->  | R19: =#REF! ->  | T19: =#REF! ->  | V19: =#REF! ->  | X19: =#REF! ->  | Z19: =#REF! -> 
A20: OFICINAS REGIONALES | B20: =#REF! ->  | D20: =#REF! ->  | F20: =#REF! ->  | H20: =#REF! ->  | J20: =#REF! ->  | L20: =#REF! ->  | N20: =#REF! ->  | P20: =#REF! ->  | R20: =#REF! ->  | T20: =#REF! ->  | V20: =#REF! ->  | X20: =#REF! ->  | Z20: =#REF! -> 
A22: HECHOS VITALES Y CIVILES INSCRITOS | B22: =#REF! ->  | D22: =#REF!+#REF! ->  | F22: =#REF!+#REF! ->  | H22: =#REF!+#REF! ->  | J22: =#REF!+#REF! ->  | L22: =#REF!+#REF! ->  | N22: =#REF!+#REF! ->  | P22: =#REF!+#REF! ->  | R22: =#REF!+#REF! ->  | T22: =#REF!+#REF! ->  | V22: =#REF!+#REF! ->  | X22: =#REF!+#REF! ->  | Z22: =#REF!+#REF! -> 
A23: Nacimientos | B23: =#REF! ->  | D23: =#REF! ->  | F23: =#REF! ->  | H23: =#REF! ->  | J23: =#REF! ->  | L23: =#REF! ->  | N23: =#REF! ->  | P23: =#REF! ->  | R23: =#REF! ->  | T23: =#REF! ->  | V23: =#REF! ->  | X23: =#REF! ->  | Z23: =#REF! -> 
A24: Defunciones | B24: =#REF! ->  | D24: =#REF! ->  | F24: =#REF! ->  | H24: =#REF! ->  | J24: =#REF! ->  | L24: =#REF! ->  | N24: =#REF! ->  | P24: =#REF! ->  | R24: =#REF! ->  | T24: =#REF! ->  | V24: =#REF! ->  | X24: =#REF! ->  | Z24: =#REF! -> 
A25: Matrimonios | B25: =#REF! ->  | D25: =#REF! ->  | F25: =#REF! ->  | H25: =#REF! ->  | J25: =#REF! ->  | L25: =#REF! ->  | N25: =#REF! ->  | P25: =#REF! ->  | R25: =#REF! ->  | T25: =#REF! ->  | V25: =#REF! ->  | X25: =#REF! ->  | Z25: =#REF! -> 
A26: Católicos | B26: =#REF! ->  | D26: =#REF! ->  | F26: =#REF! ->  | H26: =#REF! ->  | J26: =#REF! ->  | L26: =#REF! ->  | N26: =#REF! ->  | P26: =#REF! ->  | R26: =#REF! ->  | T26: =#REF! ->  | V26: =#REF! ->  | X26: =#REF! ->  | Z26: =#REF! -> 
A27: Civiles | B27: =#REF! ->  | D27: =#REF! ->  | F27: =#REF! ->  | H27: =#REF! ->  | J27: =#REF! ->  | L27: =#REF! ->  | N27: =#REF! ->  | P27: =#REF! ->  | R27: =#REF! ->  | T27: =#REF! ->  | V27: =#REF! ->  | X27: =#REF! ->  | Z27: =#REF! -> 
A28: Extranjeros | B28: =#REF! ->  | D28: =#REF! ->  | F28: =#REF! ->  | H28: =#REF! ->  | J28: =#REF! ->  | L28: =#REF! ->  | N28: =#REF! ->  | P28: =#REF! ->  | R28: =#REF! ->  | T28: =#REF! ->  | V28: =#REF! ->  | X28: =#REF! ->  | Z28: =#REF! -> 
A29: Actos Jurídicos (tramitados) | B29: =#REF! ->  | D29: =#REF! ->  | F29: =#REF! ->  | H29: =#REF! ->  | J29: =#REF! ->  | L29: =#REF! ->  | N29: =#REF! ->  | P29: =#REF! ->  | R29: =#REF! ->  | T29: =#REF! ->  | V29: =#REF! ->  | X29: =#REF! ->  | Z29: =#REF! -> 
A30: Adopciones | B30: =#REF! ->  | D30: =#REF! ->  | F30: =#REF! ->  | H30: =#REF! ->  | J30: =#REF! ->  | L30: =#REF! ->  | N30: =#REF! ->  | P30: =#REF! ->  | R30: =#REF! ->  | T30: =#REF! ->  | V30: =#REF! ->  | X30: =#REF! ->  | Z30: =#REF! -> 
A31: Divorcios | B31: =#REF! ->  | D31: =#REF! ->  | F31: =#REF! ->  | H31: =#REF! ->  | J31: =#REF! ->  | L31: =#REF! ->  | N31: =#REF! ->  | P31: =#REF! ->  | R31: =#REF! ->  | T31: =#REF! ->  | V31: =#REF! ->  | X31: =#REF! ->  | Z31: =#REF! -> 
A32: Ocursos | B32: =#REF! ->  | D32: =#REF! ->  | F32: =#REF! ->  | H32: =#REF! ->  | J32: =#REF! ->  | L32: =#REF! ->  | N32: =#REF! ->  | P32: =#REF! ->  | R32: =#REF! ->  | T32: =#REF! ->  | V32: =#REF! ->  | X32: =#REF! ->  | Z32: =#REF! -> 
A33: Reconocimientos | B33: =#REF! ->  | D33: =#REF! ->  | F33: =#REF! ->  | H33: =#REF! ->  | J33: =#REF! ->  | L33: =#REF! ->  | N33: =#REF! ->  | P33: =#REF! ->  | R33: =#REF! ->  | T33: =#REF! ->  | V33: =#REF! ->  | X33: =#REF! ->  | Z33: =#REF! -> 
A34: Otros | B34: =#REF! ->  | D34: =#REF!+#REF!+#REF!+#REF!+#REF!+#REF! ->  | F34: =#REF!+#REF!+#REF!+#REF!+#REF!+#REF! ->  | G34: =#REF!+#REF!+#REF!+#REF!+#REF!+#REF! ->  | H34: =#REF!+#REF!+#REF!+#REF!+#REF!+#REF! ->  | I34: =#REF!+#REF!+#REF!+#REF!+#REF!+#REF! ->  | J34: =#REF!+#REF!+#REF!+#REF!+#REF!+#REF! ->  | K34: =#REF!+#REF!+#REF!+#REF!+#REF!+#REF! ->  | L34: =#REF!+#REF!+#REF!+#REF!+#REF!+#REF! ->  | M34: =#REF!+#REF!+#REF!+#REF!+#REF!+#REF! ->  | N34: =#REF!+#REF!+#REF!+#REF!+#REF!+#REF! ->  | P34: =#REF!+#REF!+#REF!+#REF!+#REF!+#REF! ->  | R34: =#REF!+#REF!+#REF!+#REF!+#REF!+#REF! ->  | T34: =#REF!+#REF!+#REF!+#REF!+#REF!+#REF! ->  | V34: =#REF!+#REF!+#REF!+#REF!+#REF!+#REF! ->  | X34: =#REF!+#REF!+#REF!+#REF!+#REF!+#REF! ->  | Z34: =#REF!+#REF!+#REF!+#REF!+#REF!+#REF! -> 
A36: NATURALIZADOS (Cartas entregadas) | B36: =#REF! ->  | D36: =#REF! ->  | F36: =#REF! ->  | H36: =#REF! ->  | J36: =#REF! ->  | L36: =#REF! ->  | N36: =#REF! ->  | P36: =#REF! ->  | R36: =#REF! ->  | T36: =#REF! ->  | V36: =#REF! ->  | X36: =#REF! ->  | Z36: =#REF! -> 
A38: PATERNIDAD RESPONSABLE1/
A39: INGRESO DE SOLICITUDES | B39: =SUM(D39:Z39) ->  | D39: =#REF!-#REF! ->  | F39: =#REF!-#REF! ->  | H39: =#REF!-#REF! ->  | J39: =#REF!-#REF! ->  | L39: =#REF!-#REF! ->  | N39: =#REF!-#REF! ->  | P39: =#REF!-#REF! ->  | R39: =#REF!-#REF! ->  | T39: =#REF!-#REF! ->  | V39: =#REF!-#REF! ->  | X39: =#REF!-#REF! ->  | Z39: =#REF!-#REF! -> 
A40: PRUEBAS REALIZADAS | D40: =+D41+D42 ->  | F40: =+F41+F42 ->  | H40: =+H41+H42 ->  | J40: =+J41+J42 ->  | L40: =+L41+L42 ->  | N40: =+N41+N42 ->  | P40: =+P41+P42 ->  | R40: =+R41+R42 ->  | T40: =+T41+T42 ->  | V40: =+V41+V42 ->  | X40: =+X41+X42 ->  | Z40: =+Z41+Z42 -> 
A41: ADN Positivo | D41: =#REF!-#REF! ->  | F41: =#REF!-#REF! ->  | H41: =#REF!-#REF! ->  | J41: =#REF!-#REF! ->  | L41: =#REF!-#REF! ->  | N41: =#REF!-#REF! ->  | P41: =#REF!-#REF! ->  | R41: =#REF!-#REF! ->  | T41: =#REF!-#REF! ->  | V41: =#REF!-#REF! ->  | X41: =#REF!-#REF! ->  | Z41: =#REF!-#REF! -> 
A42: ADN Negativo | D42: =#REF!-#REF! ->  | F42: =#REF!-#REF! ->  | H42: =#REF!-#REF! ->  | J42: =#REF!-#REF! ->  | L42: =#REF!-#REF! ->  | N42: =#REF!-#REF! ->  | P42: =#REF!-#REF! ->  | R42: =#REF!-#REF! ->  | T42: =#REF!-#REF! ->  | V42: =#REF!-#REF! ->  | X42: =#REF!-#REF! ->  | Z42: =#REF!-#REF! -> 
A43: PRUEBAS NO REALIZADAS | D43: =+D44+D45+D46 ->  | F43: =#REF!-#REF! ->  | H43: =#REF!-#REF! ->  | J43: =+J44+J45+J46 ->  | L43: =+L44+L45+L46 ->  | N43: =+N44+N45+N46 ->  | P43: =+P44+P45+P46 ->  | R43: =+R44+R45+R46 ->  | T43: =+T44+T45+T46 ->  | V43: =+V44+V45+V46 ->  | X43: =+X44+X45+X46 ->  | Z43: =+Z44+Z45+Z46 -> 
A44: Padre no se presentó | D44: =#REF!-#REF! ->  | F44: =#REF!-#REF! ->  | H44: =#REF!-#REF! ->  | J44: =#REF!-#REF! ->  | L44: =#REF!-#REF! ->  | N44: =#REF!-#REF! ->  | P44: =#REF!-#REF! ->  | R44: =#REF!-#REF! ->  | T44: =#REF!-#REF! ->  | V44: =#REF!-#REF! ->  | X44: =#REF!-#REF! ->  | Z44: =#REF!-#REF! -> 
A45: Madre no se presentó | D45: =#REF!-#REF! ->  | F45: =#REF!-#REF! ->  | H45: =#REF!-#REF! ->  | J45: =#REF!-#REF! ->  | L45: =#REF!-#REF! ->  | N45: =#REF!-#REF! ->  | P45: =#REF!-#REF! ->  | R45: =#REF!-#REF! ->  | T45: =#REF!-#REF! ->  | V45: =#REF!-#REF! ->  | X45: =#REF!-#REF! ->  | Z45: =#REF!-#REF! -> 
A46: Ninguno se presentó | D46: =#REF!-#REF! ->  | F46: =#REF!-#REF! ->  | H46: =#REF!-#REF! ->  | J46: =#REF!-#REF! ->  | L46: =#REF!-#REF! ->  | N46: =#REF!-#REF! ->  | P46: =#REF!-#REF! ->  | R46: =#REF!-#REF! ->  | T46: =#REF!-#REF! ->  | V46: =#REF!-#REF! ->  | X46: =#REF!-#REF! ->  | Z46: =#REF!-#REF! -> 
J48: 136 | L48: 262
A50: 1/ Durante algunos meses a principio del año el laboratorio de pruebas de ADN estuvo cerrado.
A51: Fuente: Informe de labores mensual de las diversas oficinas del Tribunal Supremo de Elecciones.

Sheet IL ANUAL ELECT. (hidden)
A1: PARA INFORME DE LABORES ANUAL DEL TSE
A2: ESTADISTICAS ELECTORALES
A4: Cuadro Nº 8: ESTADÍSTICAS ELECTORALES 2010
T5: 1 | V5: 2 | X5: 3 | Z5: 4
A6: INDICADORES | B6: TOTAL | D6: ENERO | F6: FEBRERO | H6: MARZO | J6: ABRIL | L6: MAYO | N6: JUNIO | P6: JULIO | R6: AGOSTO | T6: SETIEMBRE | V6: OCTUBRE | X6: NOVIEMBRE | Z6: DICIEMBRE
A8: SOLICITUDES CEDULARES RECIBIDAS | B8: =#REF! ->  | D8: =#REF! ->  | F8: =#REF! ->  | H8: =#REF! ->  | J8: =#REF! ->  | L8: =#REF! ->  | N8: =#REF! ->  | P8: =#REF! ->  | R8: =#REF! ->  | T8: =#REF! ->  | V8: =#REF! ->  | X8: =#REF! ->  | Z8: =#REF! -> 
A9: Primera vez | B9: =#REF! ->  | D9: =#REF! ->  | F9: =#REF! ->  | H9: =#REF! ->  | J9: =#REF! ->  | L9: =#REF! ->  | N9: =#REF! ->  | P9: =#REF! ->  | R9: =#REF! ->  | T9: =#REF! ->  | V9: =#REF! ->  | X9: =#REF! ->  | Z9: =#REF! -> 
A10: Duplicado | B10: =#REF! ->  | D10: =#REF! ->  | F10: =#REF! ->  | H10: =#REF! ->  | J10: =#REF! ->  | L10: =#REF! ->  | N10: =#REF! ->  | P10: =#REF! ->  | R10: =#REF! ->  | T10: =#REF! ->  | V10: =#REF! ->  | X10: =#REF! ->  | Z10: =#REF! -> 
A11: Traslado | B11: =#REF! ->  | D11: =#REF! ->  | F11: =#REF! ->  | H11: =#REF! ->  | J11: =#REF! ->  | L11: =#REF! ->  | N11: =#REF! ->  | P11: =#REF! ->  | R11: =#REF! ->  | T11: =#REF! ->  | V11: =#REF! ->  | X11: =#REF! ->  | Z11: =#REF! -> 
A13: CÉDULAS DE IDENTIDAD IMPRESAS | B13: =#REF! ->  | D13: =#REF! ->  | F13: =#REF! ->  | H13: =#REF! ->  | J13: =#REF! ->  | L13: =#REF! ->  | N13: =#REF! ->  | P13: =#REF! ->  | R13: =#REF! ->  | T13: =#REF! ->  | V13: =#REF! ->  | X13: =#REF! ->  | Z13: =#REF! -> 
A15: MOVIMIENTOS Y MODIFICACIONES AL PADRÓN | B15: =#REF! ->  | D15: =#REF! ->  | F15: =#REF! ->  | H15: =#REF! ->  | J15: =#REF! ->  | L15: =#REF! ->  | N15: =#REF! ->  | P15: =#REF! ->  | R15: =#REF! ->  | T15: =#REF! ->  | V15: =#REF! ->  | X15: =#REF! ->  | Z15: =#REF! -> 
A16: INCLUSIONES | B16: =SUM(D16:Z16) ->  | D16: =#REF! ->  | F16: =#REF! ->  | H16: =#REF! ->  | J16: =#REF! ->  | L16: =#REF! ->  | N16: =#REF! ->  | P16: =#REF! ->  | R16: =#REF! ->  | T16: =#REF! ->  | V16: =#REF! ->  | X16: =#REF! ->  | Z16: =#REF! -> 
A17: EXCLUSIONES | B17: =SUM(D17:Z17) ->  | D17: =#REF! ->  | F17: =#REF! ->  | H17: =#REF! ->  | J17: =#REF! ->  | L17: =#REF! ->  | N17: =#REF! ->  | P17: =#REF! ->  | R17: =#REF! ->  | T17: =#REF! ->  | V17: =#REF! ->  | X17: =#REF! ->  | Z17: =#REF! -> 
A18: OTROS MOVIMIENTOS | B18: =SUM(D18:Z18) ->  | D18: =+D15-D16-D17 -> 
A20: FISCALIZACIÓN DE ASAMBLEAS DE PARTIDOS POLÍTICOS | B20: =#REF! ->  | D20: =#REF! ->  | F20: =#REF! ->  | H20: =#REF! ->  | J20: =#REF! ->  | L20: =#REF! ->  | N20: =#REF! ->  | P20: =#REF! ->  | R20: =#REF! ->  | T20: =#REF! ->  | V20: =#REF! ->  | X20: =#REF! ->  | Z20: =#REF! -> 
A21: Distritales | B21: =#REF! ->  | D21: =#REF! ->  | F21: =#REF! ->  | H21: =#REF! ->  | J21: =#REF! ->  | L21: =#REF! ->  | N21: =#REF! ->  | P21: =#REF! ->  | R21: =#REF! ->  | T21: =#REF! ->  | V21: =#REF! ->  | X21: =#REF! ->  | Z21: =#REF! -> 
A22: Cantonales | B22: =#REF! ->  | D22: =#REF! ->  | F22: =#REF! ->  | H22: =#REF! ->  | J22: =#REF! ->  | L22: =#REF! ->  | N22: =#REF! ->  | P22: =#REF! ->  | R22: =#REF! ->  | T22: =#REF! ->  | V22: =#REF! ->  | X22: =#REF! ->  | Z22: =#REF! -> 
A23: Provinciales | B23: =#REF! ->  | D23: =#REF! ->  | F23: =#REF! ->  | H23: =#REF! ->  | J23: =#REF! ->  | L23: =#REF! ->  | N23: =#REF! ->  | P23: =#REF! ->  | R23: =#REF! ->  | T23: =#REF! ->  | V23: =#REF! ->  | X23: =#REF! ->  | Z23: =#REF! -> 
A24: Nacionales | B24: =#REF! ->  | D24: =#REF! ->  | F24: =#REF! ->  | H24: =#REF! ->  | J24: =#REF! ->  | L24: =#REF! ->  | N24: =#REF! ->  | P24: =#REF! ->  | R24: =#REF! ->  | T24: =#REF! ->  | V24: =#REF! ->  | X24: =#REF! ->  | Z24: =#REF! -> 
A26: ATENCIÓN DE CONSULTAS EN MATERIA ELECTORAL 2/ | B26: =#REF! ->  | D26: =#REF! ->  | F26: =#REF! ->  | H26: =#REF! ->  | J26: =#REF! ->  | L26: =#REF! ->  | N26: =#REF! ->  | P26: =#REF! ->  | R26: =#REF! ->  | T26: =#REF! ->  | V26: =#REF! ->  | X26: =#REF! ->  | Z26: =#REF! -> 
A27: Partidos políticos | B27: =#REF! ->  | D27: =#REF! ->  | F27: =#REF! ->  | H27: =#REF! ->  | J27: =#REF! ->  | L27: =#REF! ->  | N27: =#REF! ->  | P27: =#REF! ->  | R27: =#REF! ->  | T27: =#REF! ->  | V27: =#REF! ->  | X27: =#REF! ->  | Z27: =#REF! -> 
A28: Asamblea legislativa | B28: =#REF! ->  | D28: =#REF! ->  | F28: =#REF! ->  | H28: =#REF! ->  | J28: =#REF! ->  | L28: =#REF! ->  | N28: =#REF! ->  | P28: =#REF! ->  | R28: =#REF! ->  | T28: =#REF! ->  | V28: =#REF! ->  | X28: =#REF! ->  | Z28: =#REF! -> 
A29: Municipalidades | B29: =#REF! ->  | D29: =#REF! ->  | F29: =#REF! ->  | H29: =#REF! ->  | J29: =#REF! ->  | L29: =#REF! ->  | N29: =#REF! ->  | P29: =#REF! ->  | R29: =#REF! ->  | T29: =#REF! ->  | V29: =#REF! ->  | X29: =#REF! ->  | Z29: =#REF! -> 
A30: Delegado ad honorem | B30: =#REF! ->  | D30: =#REF! ->  | F30: =#REF! ->  | H30: =#REF! ->  | J30: =#REF! ->  | L30: =#REF! ->  | N30: =#REF! ->  | P30: =#REF! ->  | R30: =#REF! ->  | T30: =#REF! ->  | V30: =#REF! ->  | X30: =#REF! ->  | Z30: =#REF! -> 
A31: Centros educativos, asociaciones y ciudadanos en general | B31: =#REF! ->  | D31: =#REF! ->  | F31: =#REF! ->  | H31: =#REF! ->  | J31: =#REF! ->  | L31: =#REF! ->  | N31: =#REF! ->  | P31: =#REF! ->  | R31: =#REF! ->  | T31: =#REF! ->  | V31: =#REF! ->  | X31: =#REF! ->  | Z31: =#REF! -> 
A32: Fuerza pública | B32: =#REF! ->  | D32: =#REF! ->  | F32: =#REF! ->  | H32: =#REF! ->  | J32: =#REF! ->  | L32: =#REF! ->  | N32: =#REF! ->  | P32: =#REF! ->  | R32: =#REF! ->  | T32: =#REF! ->  | V32: =#REF! ->  | X32: =#REF! ->  | Z32: =#REF! -> 
A33: Otros(auxiliares electorales) | B33: =#REF! ->  | D33: =#REF! ->  | F33: =#REF! ->  | H33: =#REF! ->  | J33: =#REF! ->  | L33: =#REF! ->  | N33: =#REF! ->  | P33: =#REF! ->  | R33: =#REF! ->  | T33: =#REF! ->  | V33: =#REF! ->  | X33: =#REF! ->  | Z33: =#REF! -> 
A35: PADRÓN ELECTORAL | D35: =#REF! ->  | F35: =#REF! ->  | H35: =#REF! ->  | J35: =#REF! ->  | L35: =#REF! ->  | N35: =#REF! ->  | P35: =#REF! ->  | R35: =#REF! ->  | T35: =#REF! ->  | V35: =#REF! ->  | X35: =#REF! ->  | Z35: =#REF! -> 
A36: Hombres | D36: =#REF! ->  | F36: =#REF! ->  | H36: =#REF! ->  | J36: =#REF! ->  | L36: =#REF! ->  | N36: =#REF! ->  | P36: =#REF! ->  | R36: =#REF! ->  | T36: =#REF! ->  | V36: =#REF! ->  | X36: =#REF! ->  | Z36: =#REF! -> 
A37: Mujeres | D37: =#REF! ->  | F37: =#REF! ->  | H37: =#REF! ->  | J37: =#REF! ->  | L37: =#REF! ->  | N37: =#REF! ->  | P37: =#REF! ->  | R37: =#REF! ->  | T37: =#REF! ->  | V37: =#REF! ->  | X37: =#REF! ->  | Z37: =#REF! -> 
J40: 136 | L40: 262
A41: 1/ Consultas atendidas por el Departamento de Coordinación de Programas Electorales
A43: Fuente: Informe de labores mensual de las diversas oficinas del Tribunal Supremo de Elecciones.

Sheet 22
A1: CUADRO 22
A3: COSTA RICA: DONACIONES REPORTADAS PARA EL PROCESO ELECTORAL 2010-20141/
A4: SEGÚN PARTIDO POLÍTICO 2/, AL 31 DE DICIEMBRE DE 2010
A6: PARTIDO POLÍTICO | B6: MONTO EN COLONES | C6: PORCENTAJE
A9: TOTAL | B9: 519169313.8 | C9: 100
A11: ACCESIBILIDAD SIN EXCLUSIÓN | B11: 7670000 | C11: 1.477360043
A12: ACCIÓN CANTONAL SIQUIRRES INDEPENDIENTE | B12: 470000 | C12: 0.09052923343
A13: ACCIÓN CIUDADANA | B13: 17343617.9 | C13: 3.340647731
A14: ACCIÓN NARANJEÑA | B14: 48000 | C14: 0.009245538734
A15: ACCIÓN QUEPEÑA | B15: 220000 | C15: 0.04237538586
A16: BARVA UNIDA (COALICIÓN) | B16: 570000 | C16: 0.1097907725
A17: CARTAGO UNIDO (COALICIÓN) | B17: 14436469.27 | C17: 2.780686163
A18: CÍVICO TIBÁS FUENTEOVEJUNA | B18: 10000 | C18: 0.001926153903
A19: CURRIDABAT SIGLO XXI | B19: 970000 | C19: 0.1868369286
A20: DEL SOL | B20: 4906800 | C20: 0.945125197
A21: EL PUENTE Y LOS CAMINOS DE MORA | B21: 2071330 | C21: 0.3989700364
A22: FRENTE AMPLIO | B22: 33050627.87 | C22: 6.366059586
A23: INDEPENDIENTE BELEMITA | B23: 314835 | C23: 0.0606420664
A24: INTEGRACIÓN BARBAREÑA | B24: 581601.95 | C24: 0.1120254866
A25: INTEGRACIÓN NACIONAL | B25: 6198000 | C25: 1.193830189
A26: LIBERACIÓN NACIONAL | B26: 171090162 | C26: 32.95459833
A27: MONTES DE OCA UNIDA (COALICIÓN) | B27: 864000 | C27: 0.1664196972
A28: MOVIMIENTO AVANCE SANTO DOMINGO | B28: 5253480 | C28: 1.011901101
A29: MOVIMIENTO LIBERTARIO | B29: 226154811.8 | C29: 43.56089734
A30: ORGANIZACIÓN LABORISTA DE AGUIRRE | B30: 367000 | C30: 0.07068984823
A31: RENOVACIÓN COSTARRICENSE | B31: 502000 | C31: 0.09669292592
A32: RESTAURACIÓN HEREDIANA | B32: 19096 | C32: 0.003678183493
A33: RESTAURACIÓN NACIONAL | B33: 3479405 | C33: 0.670186952
A34: UNIDAD SOCIAL CRISTIANA | B34: 7993769.25 | C34: 1.539722984
A35: UNIDOS POR SAN CARLOS (COALICIÓN) | B35: 950000 | C35: 0.1829846208
A36: UNIÓN ATENIENSE | B36: 165000 | C36: 0.0317815394
A37: UNIÓN PALMAREÑA | B37: 874427.77 | C37: 0.1684282462
A38: YUNTA PROGRESISTA ESCAZUCEÑA | B38: 12594880 | C38: 2.425967727
A41: 1/ Donaciones recibidas, reportadas por los partidos políticos de marzo a diciembre de 2010.
A42: 2/ Las agrupaciones Tarrazú Primero y Unión Poaseña no remitieron el reporte de contribuyentes durante el año. Los siguientes Partidos Políticos reportaron no haber recibido donaciones durante el año: Alianza Mayor, Alianza Patriótica, Autónomo Oromontano, Comunal Pro Curri, Goicoechea en Acción, Humanista de Heredia, Humanista de Montes de Oca, Movimiento de Trabajadores y Campesinos, Organización Social Activa, Restauración Alajuelense, Talamanca Unida, Transparencia Cartaginés, Único Abangareño, Unión Agrícola Cartaginés y Viva Buenos Aires.
A44: Nota: El detalle de los contribuyentes se puede consultar en www.tse.go.cr
A46: Fuente: Departamento de Financiamiento de Partidos Políticos.
